Organisation Name (A),Department (B),Service Cat Label (C ),Purpose of Spend (D),Expenditure CIPFA Sub Group (E),Supplier (F),Supplier Reference (G),Pay Date (H),Transaction Number (I),Net Amount (J),Grant to VCSE? (K),Charity Number (L),Card Transaction (M),Irrecoverable VAT (N)
Pendle Borough Council,Operational Services,Transport Related Expense,Tprt : Repairs : General,3105,FST CONSUMABLES LIMITED,A0000004,28/09/2023,OPS0336730,94.3,N,,N,N
Pendle Borough Council,Operational Services,Indirect Employee Expenses,Training,1211,APSE,A0000021,14/09/2023,OPS0336443,296,N,,N,N
Pendle Borough Council,Operational Services,Indirect Employee Expenses,Training,1211,APSE,A0000021,14/09/2023,OPS0336444,888,N,,N,N
Pendle Borough Council,Operational Services,Supplies and Services,Expenditure : Materials,0002,BARNES JB LIMITED,A0000202,28/09/2023,OPS0336710,73,N,,N,N
Pendle Borough Council,Operational Services,Premises Related Expense,Bldgs : R & M : Day To Day,2001,BARNES JB LIMITED,A0000202,28/09/2023,OPS0336708,15.34,N,,N,N
Pendle Borough Council,Operational Services,Premises Related Expense,Grounds : R & M : Day to Day : Routine,2101,BARNES JB LIMITED,A0000202,07/09/2023,OPS0336296,12.48,N,,N,N
Pendle Borough Council,Operational Services,Premises Related Expense,Grounds : R & M : Day to Day : Routine,2101,BARNES JB LIMITED,A0000202,28/09/2023,OPS0336733,77.1,N,,N,N
Pendle Borough Council,Operational Services,Premises Related Expense,Grounds : Vandalism Repairs,2102,BARNES JB LIMITED,A0000202,28/09/2023,OPS0336737,4.3,N,,N,N
Pendle Borough Council,Operational Services,Premises Related Expense,Grounds : Vandalism Repairs,2102,BARNES JB LIMITED,A0000202,28/09/2023,OPS0336735,5.32,N,,N,N
Pendle Borough Council,Operational Services,Supplies and Services,Sub-Contractors,4007,BARNES JB LIMITED,A0000202,07/09/2023,OPS0336270,35.38,N,,N,N
Pendle Borough Council,Operational Services,Supplies and Services,Sub-Contractors,4007,BARNES JB LIMITED,A0000202,07/09/2023,OPS0336248,46.8,N,,N,N
Pendle Borough Council,Operational Services,Supplies and Services,Sub-Contractors,4007,BARNES JB LIMITED,A0000202,07/09/2023,OPS0336249,343.08,N,,N,N
Pendle Borough Council,Operational Services,Supplies and Services,Publicity & advertisement,4704,BARNES JB LIMITED,A0000202,07/09/2023,OPS0336250,18.36,N,,N,N
Pendle Borough Council,Operational Services,Transport Related Expense,Hire of Plant,3502,BOC GASES LTD,A0000386,07/09/2023,OPS0336286,25.95,N,,N,N
Pendle Borough Council,Operational Services,Premises Related Expense,Grounds : R & M : Day to Day : Routine,2101,CB EXCAVATORS LTD,A0000396,21/09/2023,OPS0336625,650,N,,N,N
Pendle Borough Council,Economic Growth,Capital Costs,Capital : Payments,CD14,BRIGHT ENGINEERING (PRECISION PRODUCTS) LTD,A0000456,14/09/2023,ECO0336518,63750,N,,N,N
Pendle Borough Council,Operational Services,Premises Related Expense,Bldgs : R & M : Day To Day,2001,BARROWFORD SAFE & LOCK SERV LT,A0000458,14/09/2023,OPS0336437,28.32,N,,N,N
Pendle Borough Council,Operational Services,Premises Related Expense,Bldgs : R & M : Day To Day,2001,BARROWFORD SAFE & LOCK SERV LT,A0000458,14/09/2023,OPS0336437,4.17,N,,N,N
Pendle Borough Council,Operational Services,Premises Related Expense,Bldgs : R & M : Day To Day,2001,BARROWFORD SAFE & LOCK SERV LT,A0000458,07/09/2023,OPS0336257,3.33,N,,N,N
Pendle Borough Council,Finance,Supplies and Services,Seminars etc All Costs,4601,CIPFA,A0000563,07/09/2023,FIN0336371,23.15,N,,N,N
Pendle Borough Council,Finance,Supplies and Services,Seminars etc All Costs,4601,CIPFA,A0000563,14/09/2023,FIN0336526,23.15,N,,N,N
Pendle Borough Council,Housing & Environmental Health,Premises Related Expense,Bldgs : R & M : Abnormal,2002,MARTIN COLLINS JOINERY & GLAZING,A0000623,28/09/2023,HEH0336766,72,N,,N,N
Pendle Borough Council,Housing & Environmental Health,Transfer Payments,Storage & Homelessness prevention,6104,CAVALIER TAXIS,A0000638,14/09/2023,HEH0336430,110,N,,N,N
Pendle Borough Council,Property Services,Premises Related Expense,Bldgs : R & M : Day To Day,2001,J DRIVER LTD,A0000884,21/09/2023,EST0336636,451.13,N,,N,N
Pendle Borough Council,Property Services,Premises Related Expense,Bldgs : R & M : Day To Day,2001,J DRIVER LTD,A0000884,21/09/2023,EST0336634,732.84,N,,N,N
Pendle Borough Council,Property Services,Premises Related Expense,Bldgs : R & M : Day To Day,2001,J DRIVER LTD,A0000884,21/09/2023,EST0336633,56,N,,N,N
Pendle Borough Council,Property Services,Premises Related Expense,Bldgs : R & M : Day To Day,2001,J DRIVER LTD,A0000884,21/09/2023,EST0336632,84,N,,N,N
Pendle Borough Council,Property Services,Premises Related Expense,Bldgs : R & M : Day To Day,2001,J DRIVER LTD,A0000884,21/09/2023,EST0336635,336,N,,N,N
Pendle Borough Council,Finance,,Precept Parish & T Council,0303,EARBY TOWN COUNCIL,A0001004,28/09/2023,FIN0336692,34337.56,N,,N,N
Pendle Borough Council,Economic Growth,Supplies and Services,Consultants Fees,4401,EARBY & KELBROOK SR CITIZEN WELFARE,A0001024,28/09/2023,ECO0336787,20,N,,N,N
Pendle Borough Council,Operational Services,Transport Related Expense,Tprt : Repairs : General,3105,FREIGHT TRANSPORT ASSOCIATION,A0001124,07/09/2023,OPS0336252,44,N,,N,N
Pendle Borough Council,Operational Services,Transport Related Expense,Tprt : Repairs : General,3105,GIBSONS GARDEN MACHINERY LTD,A0001201,14/09/2023,OPS0336432,44.78,N,,N,N
Pendle Borough Council,Operational Services,Transport Related Expense,Tprt : Repairs : General,3105,GIBSONS GARDEN MACHINERY LTD,A0001201,07/09/2023,OPS0336274,278.4,N,,N,N
Pendle Borough Council,Operational Services,Transport Related Expense,Tprt : Repairs : General,3105,GIBSONS GARDEN MACHINERY LTD,A0001201,14/09/2023,OPS0336432,44.78,N,,N,N
Pendle Borough Council,Operational Services,Transport Related Expense,Tprt : Repairs : General,3105,GIBSONS GARDEN MACHINERY LTD,A0001201,07/09/2023,OPS0336273,374.92,N,,N,N
Pendle Borough Council,Operational Services,Transport Related Expense,Tprt : Repairs : General,3105,GIBSONS GARDEN MACHINERY LTD,A0001201,07/09/2023,OPS0336271,23.66,N,,N,N
Pendle Borough Council,Operational Services,Capital Costs,Capital : Purchase,CD01,GIBSONS GARDEN MACHINERY LTD,A0001201,14/09/2023,OPS0336439,16875,N,,N,N
Pendle Borough Council,Operational Services,Supplies and Services,Telephones : Direct,4502,FGH GUARDHALL SECURITY LIMITED,A0001235,07/09/2023,OPS0336253,1500,N,,N,N
Pendle Borough Council,Operational Services,Supplies and Services,Telephones : Direct,4502,FGH GUARDHALL SECURITY LIMITED,A0001235,14/09/2023,OPS0336450,1500,N,,N,N
Pendle Borough Council,Operational Services,Supplies and Services,Expenditure : Materials,0002,JEWSON LIMITED,A0001323,07/09/2023,OPS0336289,37.3,N,,N,N
Pendle Borough Council,Operational Services,Supplies and Services,Expenditure : Materials,0002,JEWSON LIMITED,A0001323,28/09/2023,OPS0336732,78.3,N,,N,N
Pendle Borough Council,Operational Services,Supplies and Services,Expenditure : Materials,0002,JEWSON LIMITED,A0001323,28/09/2023,OPS0336731,156.6,N,,N,N
Pendle Borough Council,Operational Services,Supplies and Services,EFM Materials,4004,JEWSON LIMITED,A0001323,28/09/2023,OPS0336726,43.8,N,,N,N
Pendle Borough Council,Operational Services,Supplies and Services,EFM Materials,4004,JEWSON LIMITED,A0001323,28/09/2023,OPS0336727,62.64,N,,N,N
Pendle Borough Council,Operational Services,Premises Related Expense,Bldgs : R & M : Day To Day,2001,J HARGREAVES,A0001359,14/09/2023,OPS0336442,25,N,,N,N
Pendle Borough Council,Operational Services,Premises Related Expense,Premises Cleaning,2601,J HARGREAVES,A0001359,14/09/2023,OPS0336474,96,N,,N,N
Pendle Borough Council,Finance,Supplies and Services,Members : Training Expenses,4609,CIPFA BUSINESS LIMITED,A0001556,14/09/2023,FIN0336524,295,N,,N,N
Pendle Borough Council,Housing & Environmental Health,Supplies and Services,EFM Materials,4004,KILLGERM CHEMICALS LTD,A0001624,14/09/2023,HEH0336260,157.68,N,,N,N
Pendle Borough Council,Operational Services,Premises Related Expense,Grounds : R & M : Day to Day : Routine,2101,LANLEE SUPPLIES LIMITED,A0001672,21/09/2023,OPS0336628,39.02,N,,N,N
Pendle Borough Council,Operational Services,Premises Related Expense,Grounds : R & M : Day to Day : Routine,2101,LANLEE SUPPLIES LIMITED,A0001672,07/09/2023,OPS0336290,388.27,N,,N,N
Pendle Borough Council,Operational Services,Transport Related Expense,Tprt : Repairs : General,3105,DICK LEIGH,A0001675,14/09/2023,OPS0336433,88.65,N,,N,N
Pendle Borough Council,Operational Services,Transport Related Expense,Tprt : Repairs : General,3105,DICK LEIGH,A0001675,14/09/2023,OPS0336433,88.65,N,,N,N
Pendle Borough Council,Operational Services,Transport Related Expense,Tprt : Repairs : General,3105,DICK LEIGH,A0001675,14/09/2023,OPS0336434,64.17,N,,N,N
Pendle Borough Council,Operational Services,Transport Related Expense,Tprt : Repairs : General,3105,DICK LEIGH,A0001675,14/09/2023,OPS0336434,64.18,N,,N,N
Pendle Borough Council,Operational Services,Premises Related Expense,Trade Refuse Charges,2602,LANCASHIRE COUNTY COUNCIL,A0001690,14/09/2023,OPS0336466,4946.3,N,,N,N
Pendle Borough Council,Operational Services,Premises Related Expense,Trade Refuse Charges,2602,LANCASHIRE COUNTY COUNCIL,A0001690,28/09/2023,OPS0336724,5440.8,N,,N,N
Pendle Borough Council,Operational Services,Premises Related Expense,Trade Refuse Charges,2602,LANCASHIRE COUNTY COUNCIL,A0001690,14/09/2023,OPS0336466,28293.1,N,,N,N
Pendle Borough Council,Operational Services,Premises Related Expense,Trade Refuse Charges,2602,LANCASHIRE COUNTY COUNCIL,A0001690,28/09/2023,OPS0336724,33256.22,N,,N,N
Pendle Borough Council,Operational Services,Premises Related Expense,Trade Refuse Charges,2602,LANCASHIRE COUNTY COUNCIL,A0001690,14/09/2023,OPS0336466,65639.99,N,,N,N
Pendle Borough Council,Operational Services,Premises Related Expense,Trade Refuse Charges,2602,LANCASHIRE COUNTY COUNCIL,A0001690,28/09/2023,OPS0336724,70139.64,N,,N,N
Pendle Borough Council,Economic Growth,Supplies and Services,Consultants Fees,4401,LANCASHIRE COUNTY COUNCIL,A0001690,28/09/2023,ECO0336779,43587.33,N,,N,N
Pendle Borough Council,Legal & Democratic Services,Supplies and Services,Search Fees,4404,LANCASHIRE COUNTY COUNCIL,A0001690,28/09/2023,LAD0336683,904.2,N,,N,N
Pendle Borough Council,"Planning, Building Control & Regulatory Services",Supplies and Services,Other Expenses,4705,LANCASHIRE COUNTY COUNCIL,A0001690,21/09/2023,PBC0336646,4797,N,,N,N
Pendle Borough Council,Housing & Environmental Health,Capital Costs,Ren Grant : 1996 Act,CH22,LANCASHIRE COUNTY COUNCIL,A0001690,21/09/2023,HEH0336582,2961.92,N,,N,N
Pendle Borough Council,Operational Services,Premises Related Expense,Grounds : R & M : Day to Day : Routine,2101,JOHN MACADAM & SON (RESCUE) LTD,A0001846,07/09/2023,OPS0336251,120,N,,N,N
Pendle Borough Council,Property Services,Premises Related Expense,Water & Sewerage,2501,WATER PLUS LIMITED,A0001986,07/09/2023,EST0336355,136.62,N,,N,N
Pendle Borough Council,Property Services,Premises Related Expense,Water & Sewerage,2501,WATER PLUS LIMITED,A0001986,07/09/2023,EST4006745,-15.2,N,,N,N
Pendle Borough Council,Property Services,Premises Related Expense,Water & Sewerage,2501,WATER PLUS LIMITED,A0001986,07/09/2023,EST0336352,37.31,N,,N,N
Pendle Borough Council,Property Services,Premises Related Expense,Water & Sewerage,2501,WATER PLUS LIMITED,A0001986,07/09/2023,EST0336353,40.73,N,,N,N
Pendle Borough Council,Property Services,Premises Related Expense,Water & Sewerage,2501,WATER PLUS LIMITED,A0001986,07/09/2023,EST0336356,240.59,N,,N,N
Pendle Borough Council,Property Services,Premises Related Expense,Water & Sewerage,2501,WATER PLUS LIMITED,A0001986,07/09/2023,EST0336349,20.57,N,,N,N
Pendle Borough Council,Property Services,Premises Related Expense,Water & Sewerage,2501,WATER PLUS LIMITED,A0001986,28/09/2023,EST0336748,13.93,N,,N,N
Pendle Borough Council,Property Services,Premises Related Expense,Water & Sewerage,2501,WATER PLUS LIMITED,A0001986,07/09/2023,EST0336347,8.16,N,,N,N
Pendle Borough Council,Property Services,Premises Related Expense,Water & Sewerage,2501,WATER PLUS LIMITED,A0001986,07/09/2023,EST0336346,1.41,N,,N,N
Pendle Borough Council,Property Services,Premises Related Expense,Water & Sewerage,2501,WATER PLUS LIMITED,A0001986,07/09/2023,EST0336348,15.51,N,,N,N
Pendle Borough Council,Property Services,Premises Related Expense,Water & Sewerage,2501,WATER PLUS LIMITED,A0001986,07/09/2023,EST0336345,1.39,N,,N,N
Pendle Borough Council,Property Services,Premises Related Expense,Water & Sewerage,2501,WATER PLUS LIMITED,A0001986,28/09/2023,EST0336752,17.65,N,,N,N
Pendle Borough Council,Property Services,Premises Related Expense,Water & Sewerage,2501,WATER PLUS LIMITED,A0001986,07/09/2023,EST0336350,27.92,N,,N,N
Pendle Borough Council,Property Services,Premises Related Expense,Water & Sewerage,2501,WATER PLUS LIMITED,A0001986,07/09/2023,EST0336351,31.88,N,,N,N
Pendle Borough Council,Property Services,Premises Related Expense,Water & Sewerage,2501,WATER PLUS LIMITED,A0001986,28/09/2023,EST0336751,42.78,N,,N,N
Pendle Borough Council,Property Services,Premises Related Expense,Water & Sewerage,2501,WATER PLUS LIMITED,A0001986,14/09/2023,EST0336492,223.09,N,,N,N
Pendle Borough Council,Operational Services,Premises Related Expense,Bldgs : R & M : Day To Day,2001,OPTION HYGIENE LIMITED,A0002063,28/09/2023,OPS0336725,10.12,N,,N,N
Pendle Borough Council,Operational Services,Premises Related Expense,Cleaning Materials,2605,OPTION HYGIENE LIMITED,A0002063,28/09/2023,OPS0336740,39.15,N,,N,N
Pendle Borough Council,Operational Services,Premises Related Expense,Cleaning Materials,2605,OPTION HYGIENE LIMITED,A0002063,28/09/2023,OPS0336736,22.41,N,,N,N
Pendle Borough Council,Operational Services,Supplies and Services,Sub-Contractors,4007,OPTION HYGIENE LIMITED,A0002063,14/09/2023,OPS0336472,267.2,N,,N,N
Pendle Borough Council,Finance,,Precept Parish & T Council,0303,OLD LAUND BOOTH PARISH COUNCIL,A0002067,28/09/2023,FIN0336699,3125,N,,N,N
Pendle Borough Council,Operational Services,Premises Related Expense,Bldgs : R & M : Day To Day,2001,POWER PIPES (PENDLE) LIMITED,A0002089,14/09/2023,OPS0336476,166.27,N,,N,N
Pendle Borough Council,Operational Services,Transport Related Expense,Tprt : Repairs : General,3105,POWER PIPES (PENDLE) LIMITED,A0002089,07/09/2023,OPS0336275,30.17,N,,N,N
Pendle Borough Council,Housing & Environmental Health,Supplies and Services,Postages,4501,ROYAL MAIL GROUP LIMITED,A0002281,14/09/2023,HEH0336259,4.98,N,,N,N
Pendle Borough Council,Housing & Environmental Health,Supplies and Services,Postages,4501,ROYAL MAIL GROUP LIMITED,A0002281,14/09/2023,HEH0336259,114.24,N,,N,N
Pendle Borough Council,Housing & Environmental Health,Supplies and Services,Postages,4501,ROYAL MAIL GROUP LIMITED,A0002281,07/09/2023,HEH0336066,170.8,N,,N,N
Pendle Borough Council,Housing & Environmental Health,Supplies and Services,Postages,4501,ROYAL MAIL GROUP LIMITED,A0002281,28/09/2023,HEH0336720,424.38,N,,N,N
Pendle Borough Council,Housing & Environmental Health,Supplies and Services,Postages,4501,ROYAL MAIL GROUP LIMITED,A0002281,21/09/2023,HEH0336591,447.38,N,,N,N
Pendle Borough Council,Housing & Environmental Health,Supplies and Services,Postages,4501,ROYAL MAIL GROUP LIMITED,A0002281,21/09/2023,HEH0336592,618.9,N,,N,N
Pendle Borough Council,Housing & Environmental Health,Supplies and Services,Postages,4501,ROYAL MAIL GROUP LIMITED,A0002281,28/09/2023,HEH0336720,5.66,N,,N,N
Pendle Borough Council,Housing & Environmental Health,Supplies and Services,Postages,4501,ROYAL MAIL GROUP LIMITED,A0002281,21/09/2023,HEH0336591,7.57,N,,N,N
Pendle Borough Council,Housing & Environmental Health,Supplies and Services,Postages,4501,ROYAL MAIL GROUP LIMITED,A0002281,07/09/2023,HEH0336066,9.52,N,,N,N
Pendle Borough Council,Housing & Environmental Health,Supplies and Services,Postages,4501,ROYAL MAIL GROUP LIMITED,A0002281,21/09/2023,HEH0336592,32.83,N,,N,N
Pendle Borough Council,Housing & Environmental Health,Supplies and Services,Postages,4501,ROYAL MAIL GROUP LIMITED,A0002281,07/09/2023,HEH0336066,1.19,N,,N,N
Pendle Borough Council,Housing & Environmental Health,Supplies and Services,Postages,4501,ROYAL MAIL GROUP LIMITED,A0002281,21/09/2023,HEH0336592,2.97,N,,N,N
Pendle Borough Council,Housing & Environmental Health,Supplies and Services,Postages,4501,ROYAL MAIL GROUP LIMITED,A0002281,21/09/2023,HEH0336591,3.74,N,,N,N
Pendle Borough Council,Housing & Environmental Health,Supplies and Services,Postages,4501,ROYAL MAIL GROUP LIMITED,A0002281,28/09/2023,HEH0336720,6.03,N,,N,N
Pendle Borough Council,Housing & Environmental Health,Supplies and Services,Postages,4501,ROYAL MAIL GROUP LIMITED,A0002281,14/09/2023,HEH0336259,7.28,N,,N,N
Pendle Borough Council,Housing & Environmental Health,Supplies and Services,Postages,4501,ROYAL MAIL GROUP LIMITED,A0002281,07/09/2023,HEH0336066,0.56,N,,N,N
Pendle Borough Council,Housing & Environmental Health,Supplies and Services,Postages,4501,ROYAL MAIL GROUP LIMITED,A0002281,14/09/2023,HEH0336259,1.12,N,,N,N
Pendle Borough Council,Housing & Environmental Health,Supplies and Services,Postages,4501,ROYAL MAIL GROUP LIMITED,A0002281,21/09/2023,HEH0336592,1.84,N,,N,N
Pendle Borough Council,Housing & Environmental Health,Supplies and Services,Postages,4501,ROYAL MAIL GROUP LIMITED,A0002281,21/09/2023,HEH0336591,2.25,N,,N,N
Pendle Borough Council,Housing & Environmental Health,Supplies and Services,Postages,4501,ROYAL MAIL GROUP LIMITED,A0002281,14/09/2023,HEH0336259,2.49,N,,N,N
Pendle Borough Council,Housing & Environmental Health,Supplies and Services,Postages,4501,ROYAL MAIL GROUP LIMITED,A0002281,28/09/2023,HEH0336720,7.95,N,,N,N
Pendle Borough Council,Housing & Environmental Health,Supplies and Services,Postages,4501,ROYAL MAIL GROUP LIMITED,A0002281,14/09/2023,HEH0336259,10.95,N,,N,N
Pendle Borough Council,Housing & Environmental Health,Supplies and Services,Postages,4501,ROYAL MAIL GROUP LIMITED,A0002281,07/09/2023,HEH0336066,21.43,N,,N,N
Pendle Borough Council,Housing & Environmental Health,Supplies and Services,Postages,4501,ROYAL MAIL GROUP LIMITED,A0002281,21/09/2023,HEH0336591,22.59,N,,N,N
Pendle Borough Council,Housing & Environmental Health,Supplies and Services,Postages,4501,ROYAL MAIL GROUP LIMITED,A0002281,21/09/2023,HEH0336592,30.7,N,,N,N
Pendle Borough Council,Housing & Environmental Health,Supplies and Services,Postages,4501,ROYAL MAIL GROUP LIMITED,A0002281,07/09/2023,HEH0336066,11.91,N,,N,N
Pendle Borough Council,Housing & Environmental Health,Supplies and Services,Postages,4501,ROYAL MAIL GROUP LIMITED,A0002281,21/09/2023,HEH0336592,29.81,N,,N,N
Pendle Borough Council,Housing & Environmental Health,Supplies and Services,Postages,4501,ROYAL MAIL GROUP LIMITED,A0002281,21/09/2023,HEH0336591,37.63,N,,N,N
Pendle Borough Council,Housing & Environmental Health,Supplies and Services,Postages,4501,ROYAL MAIL GROUP LIMITED,A0002281,28/09/2023,HEH0336720,59.99,N,,N,N
Pendle Borough Council,Housing & Environmental Health,Supplies and Services,Postages,4501,ROYAL MAIL GROUP LIMITED,A0002281,14/09/2023,HEH0336259,73.08,N,,N,N
Pendle Borough Council,Housing & Environmental Health,Supplies and Services,Postages,4501,ROYAL MAIL GROUP LIMITED,A0002281,21/09/2023,HEH0336592,36.7,N,,N,N
Pendle Borough Council,Housing & Environmental Health,Supplies and Services,Postages,4501,ROYAL MAIL GROUP LIMITED,A0002281,28/09/2023,HEH0336720,47.27,N,,N,N
Pendle Borough Council,Housing & Environmental Health,Supplies and Services,Postages,4501,ROYAL MAIL GROUP LIMITED,A0002281,14/09/2023,HEH0336259,48.72,N,,N,N
Pendle Borough Council,Housing & Environmental Health,Supplies and Services,Postages,4501,ROYAL MAIL GROUP LIMITED,A0002281,21/09/2023,HEH0336591,55.67,N,,N,N
Pendle Borough Council,Housing & Environmental Health,Supplies and Services,Postages,4501,ROYAL MAIL GROUP LIMITED,A0002281,07/09/2023,HEH0336066,123.2,N,,N,N
Pendle Borough Council,Housing & Environmental Health,Supplies and Services,Postages,4501,ROYAL MAIL GROUP LIMITED,A0002281,28/09/2023,HEH0336720,2.46,N,,N,N
Pendle Borough Council,Housing & Environmental Health,Supplies and Services,Postages,4501,ROYAL MAIL GROUP LIMITED,A0002281,14/09/2023,HEH0336259,3,N,,N,N
Pendle Borough Council,Housing & Environmental Health,Supplies and Services,Postages,4501,ROYAL MAIL GROUP LIMITED,A0002281,21/09/2023,HEH0336591,3.42,N,,N,N
Pendle Borough Council,Housing & Environmental Health,Supplies and Services,Postages,4501,ROYAL MAIL GROUP LIMITED,A0002281,07/09/2023,HEH0336066,3.89,N,,N,N
Pendle Borough Council,Housing & Environmental Health,Supplies and Services,Postages,4501,ROYAL MAIL GROUP LIMITED,A0002281,21/09/2023,HEH0336592,25.91,N,,N,N
Pendle Borough Council,Housing & Environmental Health,Supplies and Services,Postages,4501,ROYAL MAIL GROUP LIMITED,A0002281,07/09/2023,HEH0336066,2.49,N,,N,N
Pendle Borough Council,Housing & Environmental Health,Supplies and Services,Postages,4501,ROYAL MAIL GROUP LIMITED,A0002281,21/09/2023,HEH0336592,4.98,N,,N,N
Pendle Borough Council,Housing & Environmental Health,Supplies and Services,Postages,4501,ROYAL MAIL GROUP LIMITED,A0002281,21/09/2023,HEH0336591,7.47,N,,N,N
Pendle Borough Council,Housing & Environmental Health,Supplies and Services,Postages,4501,ROYAL MAIL GROUP LIMITED,A0002281,28/09/2023,HEH0336720,19.92,N,,N,N
Pendle Borough Council,Housing & Environmental Health,Supplies and Services,Postages,4501,ROYAL MAIL GROUP LIMITED,A0002281,14/09/2023,HEH0336259,22.41,N,,N,N
Pendle Borough Council,Housing & Environmental Health,Supplies and Services,Postages,4501,ROYAL MAIL GROUP LIMITED,A0002281,21/09/2023,HEH0336591,134.43,N,,N,N
Pendle Borough Council,Housing & Environmental Health,Supplies and Services,Postages,4501,ROYAL MAIL GROUP LIMITED,A0002281,28/09/2023,HEH0336720,134.81,N,,N,N
Pendle Borough Council,Housing & Environmental Health,Supplies and Services,Postages,4501,ROYAL MAIL GROUP LIMITED,A0002281,21/09/2023,HEH0336592,158.05,N,,N,N
Pendle Borough Council,Housing & Environmental Health,Supplies and Services,Postages,4501,ROYAL MAIL GROUP LIMITED,A0002281,14/09/2023,HEH0336259,201.06,N,,N,N
Pendle Borough Council,Housing & Environmental Health,Supplies and Services,Postages,4501,ROYAL MAIL GROUP LIMITED,A0002281,07/09/2023,HEH0336066,206.24,N,,N,N
Pendle Borough Council,Housing & Environmental Health,Supplies and Services,Postages,4501,ROYAL MAIL GROUP LIMITED,A0002281,07/09/2023,HEH0336066,2.92,N,,N,N
Pendle Borough Council,Housing & Environmental Health,Supplies and Services,Postages,4501,ROYAL MAIL GROUP LIMITED,A0002281,21/09/2023,HEH0336591,6.18,N,,N,N
Pendle Borough Council,Housing & Environmental Health,Supplies and Services,Postages,4501,ROYAL MAIL GROUP LIMITED,A0002281,21/09/2023,HEH0336591,14.56,N,,N,N
Pendle Borough Council,Housing & Environmental Health,Supplies and Services,Postages,4501,ROYAL MAIL GROUP LIMITED,A0002281,14/09/2023,HEH0336259,15.11,N,,N,N
Pendle Borough Council,Housing & Environmental Health,Supplies and Services,Postages,4501,ROYAL MAIL GROUP LIMITED,A0002281,07/09/2023,HEH0336066,48.77,N,,N,N
Pendle Borough Council,Housing & Environmental Health,Supplies and Services,Postages,4501,ROYAL MAIL GROUP LIMITED,A0002281,21/09/2023,HEH0336592,55.25,N,,N,N
Pendle Borough Council,Housing & Environmental Health,Supplies and Services,Postages,4501,ROYAL MAIL GROUP LIMITED,A0002281,28/09/2023,HEH0336720,67.03,N,,N,N
Pendle Borough Council,Finance,,Precept Parish & T Council,0303,REEDLEY HALLOWS PARISH COUNCIL,A0002283,28/09/2023,FIN0336700,2994.09,N,,N,N
Pendle Borough Council,Operational Services,Supplies and Services,Other Expenses,4705,STANLEY HOUSE VETERINARY GROUP,A0002423,14/09/2023,OPS0336452,12.5,N,,N,N
Pendle Borough Council,Property Services,Capital Costs,Capital : Payments,CD14,SOVEREIGN GROUP LTD,A0002524,07/09/2023,EST0336344,6192.35,N,,N,N
Pendle Borough Council,Housing & Environmental Health,Capital Costs,Ren Grant : 1996 Act,CH22,CLOSOMAT LIMITED,A0002685,21/09/2023,HEH0336580,4860,N,,N,N
Pendle Borough Council,Policy & Commissioning,Supplies and Services,Publicity & advertisement,4704,TRISTAR PRINTERS LTD,A0002731,28/09/2023,POL0336774,60,N,,N,N
Pendle Borough Council,Economic Growth,Supplies and Services,Grants/Contributions,4739,TRISTAR PRINTERS LTD,A0002731,28/09/2023,ECO0336781,45,N,,N,N
Pendle Borough Council,Economic Growth,Supplies and Services,Grants/Contributions,4739,TRISTAR PRINTERS LTD,A0002731,28/09/2023,ECO0336781,90,N,,N,N
Pendle Borough Council,Economic Growth,Supplies and Services,Grants/Contributions,4739,TRISTAR PRINTERS LTD,A0002731,28/09/2023,ECO0336780,153,N,,N,N
Pendle Borough Council,Economic Growth,Premises Related Expense,Grounds : R & M : Day to Day : Routine,2101,YORKSHIRE WATER,A0002808,28/09/2023,ECO0336776,39.9,N,,N,N
Pendle Borough Council,Operational Services,Agency Staff,Emp : Agency Wages,1004,DHRB LIMITED T/A DRIVER HIRE (45680),A0003556,21/09/2023,OPS0336612,158.98,N,,N,N
Pendle Borough Council,Operational Services,Agency Staff,Emp : Agency Wages,1004,DHRB LIMITED T/A DRIVER HIRE (45680),A0003556,21/09/2023,OPS0336616,611.82,N,,N,N
Pendle Borough Council,Operational Services,Agency Staff,Emp : Agency Wages,1004,DHRB LIMITED T/A DRIVER HIRE (45680),A0003556,21/09/2023,OPS0336615,992.36,N,,N,N
Pendle Borough Council,Operational Services,Agency Staff,Emp : Agency Wages,1004,DHRB LIMITED T/A DRIVER HIRE (45680),A0003556,21/09/2023,OPS0336616,158.97,N,,N,N
Pendle Borough Council,Operational Services,Agency Staff,Emp : Agency Wages,1004,DHRB LIMITED T/A DRIVER HIRE (45680),A0003556,21/09/2023,OPS0336612,1257.35,N,,N,N
Pendle Borough Council,Finance,Supplies and Services,Printing & Stationery,4301,CHILD POVERTY ACTION GROUP,A0004890,07/09/2023,FIN0336369,149.99,N,,N,N
Pendle Borough Council,Legal & Democratic Services,Indirect Employee Expenses,Staff Refreshments,1261,PHILIP SANDERSON,A0006611,07/09/2023,LAD0336245,20.85,N,,N,N
Pendle Borough Council,Legal & Democratic Services,Supplies and Services,Hospitality,4611,PHILIP SANDERSON,A0006611,07/09/2023,LAD0336245,20.86,N,,N,N
Pendle Borough Council,Legal & Democratic Services,Supplies and Services,Hospitality,4611,LHT ENTERPRISES LIMITED,A0010288,28/09/2023,LAD0336717,122.29,N,,N,N
Pendle Borough Council,Finance,Supplies and Services,Other Expenses,4705,PENDLE LEISURE LIMITED,A0012961,28/09/2023,FIN0336704,603705,N,,N,N
Pendle Borough Council,Policy & Commissioning,Supplies and Services,Children`s holiday activities,4716,PENDLE LEISURE LIMITED,A0012961,21/09/2023,POL0336415,364.55,N,,N,N
Pendle Borough Council,Policy & Commissioning,Supplies and Services,Children`s holiday activities,4716,PENDLE LEISURE LIMITED,A0012961,14/09/2023,POL0336414,5893,N,,N,N
Pendle Borough Council,Operational Services,Agency Staff,Emp : Agency Wages,1004,LANDSCAPE ENGINEERING LTD,A0013135,07/09/2023,OPS0336285,3087.3,N,,N,N
Pendle Borough Council,Operational Services,Agency Staff,Emp : Agency Wages,1004,LANDSCAPE ENGINEERING LTD,A0013135,07/09/2023,OPS0336284,3400,N,,N,N
Pendle Borough Council,Operational Services,Supplies and Services,Sub-Contractors,4007,LANDSCAPE ENGINEERING LTD,A0013135,07/09/2023,OPS0336283,2672.2,N,,N,N
Pendle Borough Council,Operational Services,Supplies and Services,Sub-Contractors,4007,LANDSCAPE ENGINEERING LTD,A0013135,07/09/2023,OPS0336282,2800,N,,N,N
Pendle Borough Council,Property Services,Capital Costs,Capital: Construction: Conversion/Refu,CD57,E A FOULDS LIMITED,A0013455,14/09/2023,EST0336493,26393.1,N,,N,N
Pendle Borough Council,Economic Growth,Supplies and Services,Subscriptions & Donations,4706,CANAL & RIVER TRUST,A0015306,21/09/2023,ECO0336556,10000,N,,N,N
Pendle Borough Council,Operational Services,Supplies and Services,Sub-Contractors,4007,ORCHARD RECYCLING SERVICE,A0015803,07/09/2023,OPS0336255,2179.1,N,,N,N
Pendle Borough Council,Operational Services,Supplies and Services,Sub-Contractors,4007,ORCHARD RECYCLING SERVICE,A0015803,14/09/2023,OPS0336447,2648.8,N,,N,N
Pendle Borough Council,Operational Services,Supplies and Services,Sub-Contractors,4007,ORCHARD RECYCLING SERVICE,A0015803,28/09/2023,OPS0336729,2671.9,N,,N,N
Pendle Borough Council,Operational Services,Supplies and Services,Sub-Contractors,4007,ORCHARD RECYCLING SERVICE,A0015803,21/09/2023,OPS0336608,2764.3,N,,N,N
Pendle Borough Council,Housing & Environmental Health,Capital Costs,Ren Grant : 1996 Act,CH22,STANNAH LIFT SERVICES LTD,A0021089,07/09/2023,HEH0336059,3175,N,,N,N
Pendle Borough Council,Housing & Environmental Health,Capital Costs,Ren Grant : 1996 Act,CH22,STANNAH LIFT SERVICES LTD,A0021089,21/09/2023,HEH0336583,3516,N,,N,N
Pendle Borough Council,Housing & Environmental Health,Capital Costs,Ren Grant : 1996 Act,CH22,STANNAH LIFT SERVICES LTD,A0021089,07/09/2023,HEH0336060,4127,N,,N,N
Pendle Borough Council,Operational Services,Premises Related Expense,Bldgs : R & M : Day To Day,2001,SAANRO INTERNATIONAL LTD,A0021480,07/09/2023,OPS0336254,57.07,N,,N,N
Pendle Borough Council,Housing & Environmental Health,Premises Related Expense,Bldgs : R & M : Abnormal,2002,DRAIN BUSTERS,A0021656,28/09/2023,HEH0336767,90,N,,N,N
Pendle Borough Council,Operational Services,Supplies and Services,Sub-Contractors,4007,ASPEN VALLEY KENNELS & CATTERY,A0022106,14/09/2023,OPS0336448,765.18,N,,N,N
Pendle Borough Council,Operational Services,Supplies and Services,Other Expenses,4705,ASPEN VALLEY KENNELS & CATTERY,A0022106,14/09/2023,OPS0336448,851.6,N,,N,N
Pendle Borough Council,Economic Growth,Capital Costs,Capital : Payments,CD14,DAVID GOODGER & ASSOCIATES LT,A0024824,28/09/2023,POL0336777,500,N,,N,N
Pendle Borough Council,Housing & Environmental Health,Supplies and Services,Subscriptions & Donations,4706,LANGUAGE LINE LIMITED,A0025582,07/09/2023,HEH0336314,56,N,,N,N
Pendle Borough Council,Housing & Environmental Health,Supplies and Services,Other Expenses,4705,GRADKO INTERNATIONAL LTD,A0025806,21/09/2023,HEH0336578,211.25,N,,N,N
Pendle Borough Council,Finance,Supplies and Services,EFM : Photocopiers,4001,CANON (UK) LIMITED,A0040400,08/09/2023,FIN0336903,-422.5,N,,N,N
Pendle Borough Council,Finance,Supplies and Services,EFM : Photocopiers,4001,CANON (UK) LIMITED,A0040400,08/09/2023,FIN0336903,422.5,N,,N,N
Pendle Borough Council,Housing & Environmental Health,Supplies and Services,EFM : Photocopiers,4001,CANON (UK) LIMITED,A0040400,07/09/2023,HEH0336065,47.37,N,,N,N
Pendle Borough Council,Housing & Environmental Health,Supplies and Services,EFM : Photocopiers,4001,CANON (UK) LIMITED,A0040400,07/09/2023,HEH0336063,194.42,N,,N,N
Pendle Borough Council,Housing & Environmental Health,Supplies and Services,EFM : Photocopiers,4001,CANON (UK) LIMITED,A0040400,14/09/2023,HEH0336261,204.74,N,,N,N
Pendle Borough Council,Housing & Environmental Health,Supplies and Services,EFM : Photocopiers,4001,CANON (UK) LIMITED,A0040400,07/09/2023,HEH0336064,300.7,N,,N,N
Pendle Borough Council,"Planning, Building Control & Regulatory Services",Supplies and Services,Printing & Stationery,4301,CANON (UK) LIMITED,A0040400,07/09/2023,PBC0336241,8.87,N,,N,N
Pendle Borough Council,Property Services,Premises Related Expense,Bldgs : R & M : Day To Day,2001,PENNINE FIRE & SAFETY LTD,A0040931,28/09/2023,EST0336761,116,N,,N,N
Pendle Borough Council,Property Services,Premises Related Expense,Bldgs : R & M : Day To Day,2001,PENNINE FIRE & SAFETY LTD,A0040931,28/09/2023,EST0336747,116,N,,N,N
Pendle Borough Council,Property Services,Premises Related Expense,Bldgs : R & M : Day To Day,2001,PENNINE FIRE & SAFETY LTD,A0040931,28/09/2023,EST0336762,116,N,,N,N
Pendle Borough Council,Property Services,Premises Related Expense,Bldgs : R & M : Day To Day,2001,PENNINE FIRE & SAFETY LTD,A0040931,28/09/2023,EST0336763,116,N,,N,N
Pendle Borough Council,Property Services,Premises Related Expense,Bldgs : R & M : Day To Day,2001,PENNINE FIRE & SAFETY LTD,A0040931,28/09/2023,EST0336745,66,N,,N,N
Pendle Borough Council,Legal & Democratic Services,Supplies and Services,Seminars etc All Costs,4601,THE ASSOCIATION OF ELECTORAL ADMINISTRATORS,A0040939,14/09/2023,LAD0336461,495,N,,N,N
Pendle Borough Council,Finance,Indirect Employee Expenses,Water Supply,1262,WATER SMART (NW) LIMITED,A0042729,07/09/2023,FIN0336370,1074,N,,N,N
Pendle Borough Council,Operational Services,Premises Related Expense,Bldgs : R & M : Day To Day,2001,WATER SMART (NW) LIMITED,A0042729,21/09/2023,OPS0336609,85,N,,N,N
Pendle Borough Council,Finance,,Precept Parish & T Council,0303,ROUGHLEE BOOTH PARISH COUNCIL,A0042922,28/09/2023,FIN0336701,2122.81,N,,N,N
Pendle Borough Council,Operational Services,,Stock : Purchases,PJ01,PMC POLYTHENE LIMITED,A0043215,14/09/2023,OPS0336477,2829.64,N,,N,N
Pendle Borough Council,Operational Services,Transport Related Expense,Tprt : Repairs : General,3105, J RUSHTON,A0043864,28/09/2023,OPS0336707,190,N,,N,N
Pendle Borough Council,Operational Services,Agency Costs,Refuse Collection DLO,5005,S M SHEPHERD BUILDING CONTRACTORS,A0044037,07/09/2023,OPS0336267,200,N,,N,N
Pendle Borough Council,Finance,Supplies and Services,Licences,4416,PRICEWATERHOUSECOOPERS LLP,A0044167,14/09/2023,FIN0336520,135,N,,N,N
Pendle Borough Council,Operational Services,Premises Related Expense,Grounds : R & M : Day to Day : Routine,2101,SUTCLIFFE PLAY LTD,A0045788,28/09/2023,OPS0336712,251.6,N,,N,N
Pendle Borough Council,Operational Services,Premises Related Expense,Grounds : R & M : Day to Day : Routine,2101,SUTCLIFFE PLAY LTD,A0045788,14/09/2023,OPS0336438,255.64,N,,N,N
Pendle Borough Council,Property Services,Premises Related Expense,Electricity,2203,NPOWER,A0048483,07/09/2023,EST0336337,713.55,N,,N,N
Pendle Borough Council,Operational Services,Transport Related Expense,Tprt : Repairs : General,3105,ROSSENDALE VULCANISING (SALES LTD),A0051239,21/09/2023,OPS0336631,478,N,,N,N
Pendle Borough Council,Finance,Premises Related Expense,Rents,2301,LIBERATA UK LTD,A0051618,14/09/2023,FIN0336523,514.83,N,,N,N
Pendle Borough Council,Finance,Agency Costs,Liberata,5301,LIBERATA UK LTD,A0051618,14/09/2023,FIN0336521,10247,N,,N,N
Pendle Borough Council,Finance,Agency Costs,Liberata,5301,LIBERATA UK LTD,A0051618,14/09/2023,FIN0336522,13471.02,N,,N,N
Pendle Borough Council,Finance,Agency Costs,Liberata U/C,5303,LIBERATA UK LTD,A0051618,15/09/2023,FIN0336909,6191.67,N,,N,N
Pendle Borough Council,Finance,Agency Costs,Liberata U/C,5303,LIBERATA UK LTD,A0051618,15/09/2023,FIN0336909,34439.05,N,,N,N
Pendle Borough Council,Finance,Agency Costs,Liberata U/C,5303,LIBERATA UK LTD,A0051618,15/09/2023,FIN0336909,30524.21,N,,N,N
Pendle Borough Council,Finance,Agency Costs,Liberata U/C,5303,LIBERATA UK LTD,A0051618,15/09/2023,FIN0336909,87715.02,N,,N,N
Pendle Borough Council,Finance,Agency Costs,Liberata U/C,5303,LIBERATA UK LTD,A0051618,15/09/2023,FIN0336909,57718.75,N,,N,N
Pendle Borough Council,Finance,Agency Costs,Liberata U/C,5303,LIBERATA UK LTD,A0051618,15/09/2023,FIN0336909,89614.79,N,,N,N
Pendle Borough Council,Finance,Agency Costs,Liberata U/C,5303,LIBERATA UK LTD,A0051618,15/09/2023,FIN0336909,117970.91,N,,N,N
Pendle Borough Council,Finance,Capital Costs,Capital : Salaries,Cd13,LIBERATA UK LTD,A0051618,14/09/2023,FIN0336519,743.08,N,,N,N
Pendle Borough Council,Economic Growth,Capital Costs,Capital: Design Fees,CD53,LIBERATA UK LTD,A0051618,21/09/2023,ECO0336549,3947.83,N,,N,N
Pendle Borough Council,Property Services,Premises Related Expense,Electricity,2203,SOUTHERN ELECTRIC,A0051726,14/09/2023,EST4006748,-497.4,N,,N,N
Pendle Borough Council,Property Services,Premises Related Expense,Electricity,2203,SOUTHERN ELECTRIC,A0051726,14/09/2023,EST4006747,-483.53,N,,N,N
Pendle Borough Council,Property Services,Premises Related Expense,Electricity,2203,SOUTHERN ELECTRIC,A0051726,14/09/2023,EST4006749,-456.36,N,,N,N
Pendle Borough Council,Property Services,Premises Related Expense,Electricity,2203,SOUTHERN ELECTRIC,A0051726,14/09/2023,EST4006746,-443.05,N,,N,N
Pendle Borough Council,Property Services,Premises Related Expense,Electricity,2203,SOUTHERN ELECTRIC,A0051726,14/09/2023,EST0336489,391.04,N,,N,N
Pendle Borough Council,Property Services,Premises Related Expense,Electricity,2203,SOUTHERN ELECTRIC,A0051726,14/09/2023,EST0336486,456.36,N,,N,N
Pendle Borough Council,Property Services,Premises Related Expense,Electricity,2203,SOUTHERN ELECTRIC,A0051726,14/09/2023,EST0336488,456.36,N,,N,N
Pendle Borough Council,Property Services,Premises Related Expense,Electricity,2203,SOUTHERN ELECTRIC,A0051726,14/09/2023,EST0336487,470.23,N,,N,N
Pendle Borough Council,Property Services,Premises Related Expense,Electricity,2203,SOUTHERN ELECTRIC,A0051726,14/09/2023,EST0336490,470.23,N,,N,N
Pendle Borough Council,Operational Services,Premises Related Expense,Grounds : R & M : Day to Day : Routine,2101,ARCOL ENGINEERING LTD,A0052060,21/09/2023,OPS0336629,300,N,,N,N
Pendle Borough Council,Operational Services,Supplies and Services,Other Expenses,4705,IPL PLASTICS (UK) LIMITED,A0052535,21/09/2023,OPS0336619,9575,N,,N,N
Pendle Borough Council,Property Services,Indirect Employee Expenses,Staff Refreshments,1261,SIEMENS FINANCIAL SERVICES LIMITED,A0054268,21/09/2023,EST0336590,260,N,,N,N
Pendle Borough Council,Operational Services,Premises Related Expense,Grounds : R & M : Day to Day : Routine,2101,LANCASHIRE WILDLIFE TRUST,A0054364,07/09/2023,OPS0336293,270,N,,N,N
Pendle Borough Council,Operational Services,Premises Related Expense,Grounds : R & M : Day to Day : Routine,2101,LANCASHIRE WILDLIFE TRUST,A0054364,07/09/2023,OPS0336293,254.3,N,,N,N
Pendle Borough Council,Finance,Support Services,District Audit Fees,7202,KPMG LLP,A0054552,14/09/2023,FIN0336525,11250,N,,N,N
Pendle Borough Council,Economic Growth,Supplies and Services,Grant Funding,4737,THE UNIVERSITY OF SHEFFIELD,A0056773,07/09/2023,ECO0336235,11216.7,N,,N,N
Pendle Borough Council,Operational Services,Transport Related Expense,Tprt : Repairs : General,3105,HYDRAIR,A0056976,21/09/2023,OPS0336620,5.97,N,,N,N
Pendle Borough Council,Operational Services,Transport Related Expense,Tprt : Repairs : General,3105,HYDRAIR,A0056976,14/09/2023,OPS0336435,300.36,N,,N,N
Pendle Borough Council,Operational Services,Premises Related Expense,Grounds : R & M : Day to Day : Routine,2101,A BINNS & CO,A0057121,28/09/2023,OPS0336738,600,N,,N,N
Pendle Borough Council,Operational Services,Premises Related Expense,Grounds : R & M : Day to Day : Routine,2101,A BINNS & CO,A0057121,28/09/2023,OPS0336739,1070,N,,N,N
Pendle Borough Council,Operational Services,Premises Related Expense,Grounds : R & M : Day to Day : Routine,2101,A BINNS & CO,A0057121,28/09/2023,OPS0336738,3400,N,,N,N
Pendle Borough Council,Operational Services,Premises Related Expense,Grounds : R & M : Day to Day : Routine,2101,A BINNS & CO,A0057121,28/09/2023,OPS0336738,300,N,,N,N
Pendle Borough Council,Operational Services,Premises Related Expense,Grounds : R & M : Day to Day : Routine,2101,A BINNS & CO,A0057121,28/09/2023,OPS0336738,2750,N,,N,N
Pendle Borough Council,Operational Services,Premises Related Expense,Grounds : R & M : Day to Day : Routine,2101,A BINNS & CO,A0057121,28/09/2023,OPS0336738,290,N,,N,N
Pendle Borough Council,Operational Services,Supplies and Services,Publicity & advertisement,4704,NB COLOUR PRINT LTD,A0057578,21/09/2023,OPS0336078,328,N,,N,N
Pendle Borough Council,Legal & Democratic Services,Supplies and Services,Printing & Stationery,4301,CIVICA UK LIMITED,A0057595,07/09/2023,LAD0336266,832.27,N,,N,N
Pendle Borough Council,Finance,Supplies and Services,Seminars etc All Costs,4601,CIVICA UK LIMITED,A0057596,28/09/2023,FIN0336783,7720,N,,N,N
Pendle Borough Council,Operational Services,Premises Related Expense,Bldgs : R & M : Day To Day,2001,CHUBB FIRE & SECURITY LTD,A0057603,07/09/2023,OPS0336265,117.96,N,,N,N
Pendle Borough Council,Operational Services,Transport Related Expense,Tprt : Repairs : General,3105,UNITED UTILITIES,A0059246,14/09/2023,OPS0336473,36.69,N,,N,N
Pendle Borough Council,Operational Services,Transport Related Expense,Tprt : Repairs : General,3105,UNITED UTILITIES,A0059246,14/09/2023,OPS0336473,36.69,N,,N,N
Pendle Borough Council,Economic Growth,Agency Costs,Lancashire C C,5102,NSL LIMITED,A0059256,21/09/2023,ECO0336554,1987.2,N,,N,N
Pendle Borough Council,Legal & Democratic Services,Supplies and Services,Adverts : Statutory Notice,4702,NATIONAL WORLD PUBLISHING LTD,A0059640,14/09/2023,LAD0336459,208.01,N,,N,N
Pendle Borough Council,Legal & Democratic Services,Supplies and Services,Adverts : Statutory Notice,4702,NATIONAL WORLD PUBLISHING LTD,A0059640,28/09/2023,LAD0336718,234.01,N,,N,N
Pendle Borough Council,Legal & Democratic Services,Supplies and Services,Adverts : Statutory Notice,4702,NATIONAL WORLD PUBLISHING LTD,A0059640,28/09/2023,LAD0336719,234.01,N,,N,N
Pendle Borough Council,"Planning, Building Control & Regulatory Services",Supplies and Services,Adverts : Statutory Notice,4702,NATIONAL WORLD PUBLISHING LTD,A0059640,28/09/2023,PBC0336715,234.01,N,,N,N
Pendle Borough Council,"Planning, Building Control & Regulatory Services",Supplies and Services,Adverts : Statutory Notice,4702,NATIONAL WORLD PUBLISHING LTD,A0059640,07/09/2023,PBC0336309,260.01,N,,N,N
Pendle Borough Council,"Planning, Building Control & Regulatory Services",Supplies and Services,Adverts : Statutory Notice,4702,NATIONAL WORLD PUBLISHING LTD,A0059640,14/09/2023,PBC0336514,286.01,N,,N,N
Pendle Borough Council,"Planning, Building Control & Regulatory Services",Supplies and Services,Adverts : Statutory Notice,4702,NATIONAL WORLD PUBLISHING LTD,A0059640,28/09/2023,PBC0336771,286.01,N,,N,N
Pendle Borough Council,"Planning, Building Control & Regulatory Services",Supplies and Services,Adverts : Statutory Notice,4702,NATIONAL WORLD PUBLISHING LTD,A0059640,07/09/2023,PBC0336313,390.01,N,,N,N
Pendle Borough Council,Housing & Environmental Health,Transfer Payments,Accommodation ,6103,HILL VIEW (PRIVATE) HOTEL,A0059754,07/09/2023,HEH0336310,8065,N,,N,N
Pendle Borough Council,Housing & Environmental Health,Transfer Payments,Accommodation ,6103,HILL VIEW (PRIVATE) HOTEL,A0059754,28/09/2023,HEH0336685,13625,N,,N,N
Pendle Borough Council,Property Services,Supplies and Services,Other Expenses,4705,MAXIGIENE ENVIRONMENTAL SERVICES LTD,A0060911,28/09/2023,EST0336759,25,N,,N,N
Pendle Borough Council,Property Services,Supplies and Services,Other Expenses,4705,MAXIGIENE ENVIRONMENTAL SERVICES LTD,A0060911,28/09/2023,EST0336757,640,N,,N,N
Pendle Borough Council,Finance,,Precept Parish & T Council,0303,LANESHAWBRIDGE PARISH COUNCIL,A0062284,28/09/2023,FIN0336697,11352.43,N,,N,N
Pendle Borough Council,Finance,,Precept Parish & T Council,0303,TRAWDEN FOREST PARISH COUNCIL,A0062286,28/09/2023,FIN0336703,25000,N,,N,N
Pendle Borough Council,Property Services,Premises Related Expense,Bldgs : R & M : Day To Day,2001,KEYPLUS SECURITY LIMITED,A0062723,14/09/2023,EST0336485,26.41,N,,N,N
Pendle Borough Council,Operational Services,Premises Related Expense,Bldgs : R & M : Day To Day,2001,KEYPLUS SECURITY LIMITED,A0062723,21/09/2023,OPS0336610,145.76,N,,N,N
Pendle Borough Council,Finance,Supplies and Services,EFM : Photocopiers,4001,RICOH UK LIMITED,A0063806,21/09/2023,FIN0336650,579.95,N,,N,N
Pendle Borough Council,Property Services,Capital Costs,Capital: Construction: Conversion/Refu,CD57,PAUL WAITE ASSOCIATES LTD,A0066188,14/09/2023,EST0336484,760,N,,N,N
Pendle Borough Council,Human Resources,Transport Related Expense,Tprt : Annual Hire Charge,3601,LEX AUTOLEASE LIMITED,A0066530,21/09/2023,PER0336563,343.04,N,,N,N
Pendle Borough Council,Property Services,Premises Related Expense,Bldgs : R & M : Day To Day,2001,SPEAKMAN CONTRACTORS LTD,A0066581,21/09/2023,EST0336586,1657.05,N,,N,N
Pendle Borough Council,Property Services,Premises Related Expense,Bldgs : R & M : Day To Day,2001,SPEAKMAN CONTRACTORS LTD,A0066581,21/09/2023,EST0336586,569.38,N,,N,N
Pendle Borough Council,Property Services,Premises Related Expense,Bldgs : R & M : Day To Day,2001,SPEAKMAN CONTRACTORS LTD,A0066581,21/09/2023,EST0336586,297.61,N,,N,N
Pendle Borough Council,Property Services,Premises Related Expense,Bldgs : R & M : Day To Day,2001,SPEAKMAN CONTRACTORS LTD,A0066581,21/09/2023,EST0336586,115.45,N,,N,N
Pendle Borough Council,Property Services,Premises Related Expense,Bldgs : R & M : Day To Day,2001,SPEAKMAN CONTRACTORS LTD,A0066581,21/09/2023,EST0336586,307.2,N,,N,N
Pendle Borough Council,Property Services,Premises Related Expense,Bldgs : R & M : Day To Day,2001,SPEAKMAN CONTRACTORS LTD,A0066581,21/09/2023,EST0336586,27.93,N,,N,N
Pendle Borough Council,Property Services,Premises Related Expense,Grounds : R & M : Day to Day : Routine,2101,SPEAKMAN CONTRACTORS LTD,A0066581,21/09/2023,EST0336586,585.37,N,,N,N
Pendle Borough Council,Property Services,Capital Costs,Capital : Payments,cd14,SPEAKMAN CONTRACTORS LTD,A0066581,21/09/2023,EST0336586,111.72,N,,N,N
Pendle Borough Council,Human Resources,Indirect Employee Expenses,Emp : Medical Expenses,1236,PEOPLE ASSET MANAGEMENT LIMITED,A0067613,07/09/2023,PER0336238,110,N,,N,N
Pendle Borough Council,Human Resources,Indirect Employee Expenses,Emp : Medical Expenses,1236,PEOPLE ASSET MANAGEMENT LIMITED,A0067613,07/09/2023,PER0336239,252.5,N,,N,N
Pendle Borough Council,Operational Services,Supplies and Services,EFM Materials,4004,LIMPET LABELS UK LIMITED,A0067671,28/09/2023,OPS0336728,178,N,,N,N
Pendle Borough Council,Operational Services,Supplies and Services,Other Expenses,4705,LIMPET LABELS UK LIMITED,A0067671,07/09/2023,OPS0336256,190,N,,N,N
Pendle Borough Council,Housing & Environmental Health,,Deposits in Lieu of Bond,B669,TRAWDEN AND DISTRICT AGRICULTURAL SOCIETY LTD,A0067836,14/09/2023,HEH0336233,500,N,,N,N
Pendle Borough Council,Economic Growth,Supplies and Services,Processing Fees,4424,CHIPSIDE LTD,A0068587,21/09/2023,ECO0336552,3.45,N,,N,N
Pendle Borough Council,Economic Growth,Supplies and Services,Processing Fees,4424,CHIPSIDE LTD,A0068587,21/09/2023,ECO0336557,5.35,N,,N,N
Pendle Borough Council,Economic Growth,Supplies and Services,Processing Fees,4424,CHIPSIDE LTD,A0068587,21/09/2023,ECO0336551,16.28,N,,N,N
Pendle Borough Council,Economic Growth,Supplies and Services,Processing Fees,4424,CHIPSIDE LTD,A0068587,21/09/2023,ECO0336553,30,N,,N,N
Pendle Borough Council,Economic Growth,Supplies and Services,Processing Fees,4424,CHIPSIDE LTD,A0068587,28/09/2023,ECO0336778,229.47,N,,N,N
Pendle Borough Council,Operational Services,Premises Related Expense,Grounds : R & M : Day to Day : Routine,2101,M C & M A STEWART HAULAGE,A0068863,28/09/2023,OPS0336714,499,N,,N,N
Pendle Borough Council,Operational Services,Premises Related Expense,Grounds : R & M : Day to Day : Routine,2101,M C & M A STEWART HAULAGE,A0068863,28/09/2023,OPS0336713,883.01,N,,N,N
Pendle Borough Council,Policy & Commissioning,Supplies and Services,Sub-Contractors,4007,ACTIVE LANCASHIRE LIMITED,A0070149,14/09/2023,POL0336243,25031,N,,N,N
Pendle Borough Council,Operational Services,Supplies and Services,Sub-Contractors,4007,RENTOKIL INITIAL UK LIMITED,A0072816,28/09/2023,OPS0336721,55.11,N,,N,N
Pendle Borough Council,Operational Services,Supplies and Services,Sub-Contractors,4007,RENTOKIL INITIAL UK LIMITED,A0072816,28/09/2023,OPS0336722,71.6,N,,N,N
Pendle Borough Council,Operational Services,Supplies and Services,Sub-Contractors,4007,RENTOKIL INITIAL UK LIMITED,A0072816,14/09/2023,OPS0336468,291.66,N,,N,N
Pendle Borough Council,Operational Services,Supplies and Services,Sub-Contractors,4007,RENTOKIL INITIAL UK LIMITED,A0072816,14/09/2023,OPS0336467,5.77,N,,N,N
Pendle Borough Council,Operational Services,Supplies and Services,Sub-Contractors,4007,RENTOKIL INITIAL UK LIMITED,A0072816,14/09/2023,OPS0336468,56.66,N,,N,N
Pendle Borough Council,Operational Services,Supplies and Services,Sub-Contractors,4007,RENTOKIL INITIAL UK LIMITED,A0072816,14/09/2023,OPS0336467,83.76,N,,N,N
Pendle Borough Council,Property Services,Premises Related Expense,Bldgs : R & M : Day To Day,2001,ARROWLINE LIMITED,A0077222,21/09/2023,EST0336585,974.26,N,,N,N
Pendle Borough Council,Property Services,Premises Related Expense,Bldgs : R & M : Day To Day,2001,ARROWLINE LIMITED,A0077222,21/09/2023,EST0336585,1461.4,N,,N,N
Pendle Borough Council,Legal & Democratic Services,Supplies and Services,Printing & Stationery,4301,THOMSON REUTERS PROFESSIONAL UK LIMITED,A0077400,07/09/2023,LAD0336258,1153.95,N,,N,N
Pendle Borough Council,Finance,,Precept Parish & T Council,0303,FOULRIDGE PARISH COUNCIL,A0077715,28/09/2023,FIN0336693,8854,N,,N,N
Pendle Borough Council,Operational Services,Transport Related Expense,Tprt : Repairs : General,3105,GROUNDSMAN TOOLS LTD,A0079260,14/09/2023,OPS0336445,25.16,N,,N,N
Pendle Borough Council,Operational Services,Supplies and Services,Protective Clothing,4201,GROUNDSMAN TOOLS LTD,A0079260,14/09/2023,OPS0336445,214.36,N,,N,N
Pendle Borough Council,Finance,,Precept Parish & T Council,0303,GOLDSHAW BOOTH PARISH COUNCIL,A0080533,28/09/2023,FIN0336694,1961.9,N,,N,N
Pendle Borough Council,Legal & Democratic Services,Supplies and Services,Seminars etc All Costs,4601,LLG ENTERPRISES LIMITED,A0080587,14/09/2023,LAD0336458,130,N,,N,N
Pendle Borough Council,Finance,,Precept Parish & T Council,0303,KELBROOK & SOUGH PARISH COUNCIL,A0081332,28/09/2023,FIN0336696,3812.5,N,,N,N
Pendle Borough Council,Economic Growth,Premises Related Expense,Bldgs : R & M : Day To Day,2001,KELBROOK & SOUGH PARISH COUNCIL,A0081332,07/09/2023,HEH0336315,375,N,,N,N
Pendle Borough Council,Economic Growth,Premises Related Expense,Bldgs : R & M : Day To Day,2001,KELBROOK & SOUGH PARISH COUNCIL,A0081332,07/09/2023,HEH0336315,375,N,,N,N
Pendle Borough Council,Economic Growth,Supplies and Services,Other Expenses,4705,KELBROOK & SOUGH PARISH COUNCIL,A0081332,07/09/2023,HEH0336315,850,N,,N,N
Pendle Borough Council,Policy & Commissioning,Supplies and Services,Children`s holiday activities,4716,POSITIVE ACTION IN THE COMMUNITY,A0081553,28/09/2023,POL0336744,2609,N,,N,N
Pendle Borough Council,Policy & Commissioning,Supplies and Services,Children`s holiday activities,4716,POSITIVE ACTION IN THE COMMUNITY,A0081553,28/09/2023,POL0336743,8883,N,,N,N
Pendle Borough Council,Operational Services,Premises Related Expense,Grounds : R & M : Day to Day : Routine,2101,HUGH HARRIS LTD T/A FRESH AIR FITNESS,A0082290,28/09/2023,OPS0336711,412.21,N,,N,N
Pendle Borough Council,Operational Services,Transport Related Expense,Diesel Oil,3202,TATE FUEL OILS LIMITED,A0082819,07/09/2023,OPS0336272,1837.22,N,,N,N
Pendle Borough Council,Operational Services,Transport Related Expense,Tprt : Repairs : General,3105,CRAGGS ENERGY LIMITED,A0083617,21/09/2023,OPS0336617,675,N,,N,N
Pendle Borough Council,Operational Services,Transport Related Expense,Tprt : Repairs : General,3105,CRAGGS ENERGY LIMITED,A0083617,21/09/2023,OPS0336617,675,N,,N,N
Pendle Borough Council,Operational Services,Transport Related Expense,Tprt : Repairs : General,3105,CRAGGS ENERGY LIMITED,A0083617,21/09/2023,OPS0336617,675,N,,N,N
Pendle Borough Council,Operational Services,Transport Related Expense,Tprt : Repairs : General,3105,CRAGGS ENERGY LIMITED,A0083617,21/09/2023,OPS0336617,675,N,,N,N
Pendle Borough Council,Operational Services,Transport Related Expense,Tprt : Repairs : General,3105,CRAGGS ENERGY LIMITED,A0083617,21/09/2023,OPS0336617,675,N,,N,N
Pendle Borough Council,Operational Services,Transport Related Expense,Tprt : Repairs : General,3105,CRAGGS ENERGY LIMITED,A0083617,21/09/2023,OPS0336617,674.79,N,,N,N
Pendle Borough Council,Operational Services,Transport Related Expense,Diesel Oil,3202,CRAGGS ENERGY LIMITED,A0083617,07/09/2023,OPS0336288,2505,N,,N,N
Pendle Borough Council,Finance,,Precept Parish & T Council,0303,BLACKO PARISH COUNCIL,A0084321,28/09/2023,FIN0336689,2575.48,N,,N,N
Pendle Borough Council,Finance,Supplies and Services,Allpay,4422,ALLPAY LIMITED,A0084372,07/09/2023,FIN0336378,11,N,,N,N
Pendle Borough Council,Finance,Supplies and Services,Allpay,4422,ALLPAY LIMITED,A0084372,07/09/2023,FIN0336374,12.03,N,,N,N
Pendle Borough Council,Finance,Supplies and Services,Allpay,4422,ALLPAY LIMITED,A0084372,07/09/2023,FIN0336379,18.69,N,,N,N
Pendle Borough Council,Finance,Supplies and Services,Allpay,4422,ALLPAY LIMITED,A0084372,07/09/2023,FIN0336376,26.82,N,,N,N
Pendle Borough Council,Finance,Supplies and Services,Allpay,4422,ALLPAY LIMITED,A0084372,07/09/2023,FIN0336373,60.77,N,,N,N
Pendle Borough Council,Finance,Supplies and Services,Allpay,4422,ALLPAY LIMITED,A0084372,07/09/2023,FIN0336375,2057.9,N,,N,N
Pendle Borough Council,Housing & Environmental Health,,Housing Impts/Cap Repairs,0104,ELITE PLUMBING,A0084584,07/09/2023,HEH0336061,4100,N,,N,N
Pendle Borough Council,Housing & Environmental Health,Premises Related Expense,Bldgs : R & M : Abnormal,2002,ELITE PLUMBING,A0084584,07/09/2023,HEH0336232,636.75,N,,N,N
Pendle Borough Council,Economic Growth,Premises Related Expense,Grounds : R & M : Day to Day : Routine,2101,KEVIN WILKINSON LANDSCAPES LTD,A0085660,21/09/2023,ECO0336560,135,N,,N,N
Pendle Borough Council,Finance,Premises Related Expense,Electricity,2203,EDF ENERGY,A0088932,01/09/2023,FIN0336561,42.08,N,,N,N
Pendle Borough Council,Finance,Premises Related Expense,Electricity,2203,EDF ENERGY,A0088932,01/09/2023,FIN0336561,57.73,N,,N,N
Pendle Borough Council,Finance,Premises Related Expense,Electricity,2203,EDF ENERGY,A0088932,01/09/2023,FIN0336561,72.01,N,,N,N
Pendle Borough Council,Finance,Premises Related Expense,Electricity,2203,EDF ENERGY,A0088932,01/09/2023,FIN0336561,74.12,N,,N,N
Pendle Borough Council,Finance,Premises Related Expense,Electricity,2203,EDF ENERGY,A0088932,01/09/2023,FIN0336561,51,N,,N,N
Pendle Borough Council,Finance,Premises Related Expense,Electricity,2203,EDF ENERGY,A0088932,01/09/2023,FIN0336561,52.69,N,,N,N
Pendle Borough Council,Finance,Premises Related Expense,Electricity,2203,EDF ENERGY,A0088932,01/09/2023,FIN0336561,82.76,N,,N,N
Pendle Borough Council,Finance,Premises Related Expense,Electricity,2203,EDF ENERGY,A0088932,01/09/2023,FIN0336561,132.96,N,,N,N
Pendle Borough Council,Finance,Premises Related Expense,Electricity,2203,EDF ENERGY,A0088932,01/09/2023,FIN0336561,178.03,N,,N,N
Pendle Borough Council,Finance,Premises Related Expense,Electricity,2203,EDF ENERGY,A0088932,01/09/2023,FIN0336561,183.2,N,,N,N
Pendle Borough Council,Finance,Premises Related Expense,Electricity,2203,EDF ENERGY,A0088932,01/09/2023,FIN0336561,615.19,N,,N,N
Pendle Borough Council,Finance,Premises Related Expense,Electricity,2203,EDF ENERGY,A0088932,01/09/2023,FIN0336561,285.18,N,,N,N
Pendle Borough Council,Finance,Premises Related Expense,Electricity,2203,EDF ENERGY,A0088932,01/09/2023,FIN0336561,332.54,N,,N,N
Pendle Borough Council,Finance,Premises Related Expense,Electricity,2203,EDF ENERGY,A0088932,01/09/2023,FIN0336561,89.5,N,,N,N
Pendle Borough Council,Finance,Premises Related Expense,Electricity,2203,EDF ENERGY,A0088932,01/09/2023,FIN0336561,283.92,N,,N,N
Pendle Borough Council,Finance,Premises Related Expense,Electricity,2203,EDF ENERGY,A0088932,01/09/2023,FIN0336561,338.32,N,,N,N
Pendle Borough Council,Finance,Premises Related Expense,Electricity,2203,EDF ENERGY,A0088932,01/09/2023,FIN0336561,113.51,N,,N,N
Pendle Borough Council,Finance,Premises Related Expense,Electricity,2203,EDF ENERGY,A0088932,01/09/2023,FIN0336561,116.31,N,,N,N
Pendle Borough Council,Finance,Premises Related Expense,Electricity,2203,EDF ENERGY,A0088932,01/09/2023,FIN0336561,57.33,N,,N,N
Pendle Borough Council,Finance,Premises Related Expense,Electricity,2203,EDF ENERGY,A0088932,01/09/2023,FIN0336561,154.66,N,,N,N
Pendle Borough Council,Finance,Premises Related Expense,Electricity,2203,EDF ENERGY,A0088932,01/09/2023,FIN0336561,170.94,N,,N,N
Pendle Borough Council,Finance,Premises Related Expense,Electricity,2203,EDF ENERGY,A0088932,01/09/2023,FIN0336561,29.11,N,,N,N
Pendle Borough Council,Finance,Premises Related Expense,Electricity,2203,EDF ENERGY,A0088932,01/09/2023,FIN0336561,37.81,N,,N,N
Pendle Borough Council,Finance,Premises Related Expense,Electricity,2203,EDF ENERGY,A0088932,01/09/2023,FIN0336561,1659.58,N,,N,N
Pendle Borough Council,Finance,Premises Related Expense,Electricity,2203,EDF ENERGY,A0088932,15/09/2023,FIN0336965,406.55,N,,N,N
Pendle Borough Council,Finance,Premises Related Expense,Electricity,2203,EDF ENERGY,A0088932,01/09/2023,FIN0336561,542.33,N,,N,N
Pendle Borough Council,Finance,Premises Related Expense,Electricity,2203,EDF ENERGY,A0088932,01/09/2023,FIN0336561,549.4,N,,N,N
Pendle Borough Council,Finance,Premises Related Expense,Electricity,2203,EDF ENERGY,A0088932,01/09/2023,FIN0336561,52.99,N,,N,N
Pendle Borough Council,Finance,Premises Related Expense,Electricity,2203,EDF ENERGY,A0088932,01/09/2023,FIN0336561,54.72,N,,N,N
Pendle Borough Council,Finance,Premises Related Expense,Electricity,2203,EDF ENERGY,A0088932,01/09/2023,FIN0336561,47.72,N,,N,N
Pendle Borough Council,Finance,Premises Related Expense,Electricity,2203,EDF ENERGY,A0088932,01/09/2023,FIN0336561,48.49,N,,N,N
Pendle Borough Council,Finance,Premises Related Expense,Electricity,2203,EDF ENERGY,A0088932,01/09/2023,FIN0336561,76.27,N,,N,N
Pendle Borough Council,Finance,Premises Related Expense,Electricity,2203,EDF ENERGY,A0088932,01/09/2023,FIN0336561,77.06,N,,N,N
Pendle Borough Council,Finance,Premises Related Expense,Electricity,2203,EDF ENERGY,A0088932,01/09/2023,FIN0336561,25.79,N,,N,N
Pendle Borough Council,Finance,Premises Related Expense,Electricity,2203,EDF ENERGY,A0088932,01/09/2023,FIN0336561,29.34,N,,N,N
Pendle Borough Council,Finance,Premises Related Expense,Electricity,2203,EDF ENERGY,A0088932,01/09/2023,FIN0336561,95.85,N,,N,N
Pendle Borough Council,Finance,Premises Related Expense,Electricity,2203,EDF ENERGY,A0088932,01/09/2023,FIN0336561,31,N,,N,N
Pendle Borough Council,Finance,Premises Related Expense,Electricity,2203,EDF ENERGY,A0088932,01/09/2023,FIN0336561,31.92,N,,N,N
Pendle Borough Council,Finance,Premises Related Expense,Electricity,2203,EDF ENERGY,A0088932,01/09/2023,FIN0336561,40.96,N,,N,N
Pendle Borough Council,Finance,Premises Related Expense,Electricity,2203,EDF ENERGY,A0088932,01/09/2023,FIN0336561,42.61,N,,N,N
Pendle Borough Council,Finance,Premises Related Expense,Electricity,2203,EDF ENERGY,A0088932,01/09/2023,FIN0336561,362.44,N,,N,N
Pendle Borough Council,Finance,Premises Related Expense,Electricity,2203,EDF ENERGY,A0088932,01/09/2023,FIN0336561,382.4,N,,N,N
Pendle Borough Council,Finance,Premises Related Expense,Electricity,2203,EDF ENERGY,A0088932,01/09/2023,FIN0336561,32.09,N,,N,N
Pendle Borough Council,Finance,Premises Related Expense,Electricity,2203,EDF ENERGY,A0088932,01/09/2023,FIN0336561,23.55,N,,N,N
Pendle Borough Council,Finance,Premises Related Expense,Electricity,2203,EDF ENERGY,A0088932,01/09/2023,FIN0336561,26.63,N,,N,N
Pendle Borough Council,Finance,Premises Related Expense,Electricity,2203,EDF ENERGY,A0088932,01/09/2023,FIN0336561,218.49,N,,N,N
Pendle Borough Council,Finance,Premises Related Expense,Electricity,2203,EDF ENERGY,A0088932,01/09/2023,FIN0336561,229.97,N,,N,N
Pendle Borough Council,Finance,Premises Related Expense,Electricity,2203,EDF ENERGY,A0088932,01/09/2023,FIN0336561,46.66,N,,N,N
Pendle Borough Council,Finance,Premises Related Expense,Electricity,2203,EDF ENERGY,A0088932,01/09/2023,FIN0336561,32.72,N,,N,N
Pendle Borough Council,Finance,Premises Related Expense,Electricity,2203,EDF ENERGY,A0088932,01/09/2023,FIN0336561,34.53,N,,N,N
Pendle Borough Council,Finance,Premises Related Expense,Electricity,2203,EDF ENERGY,A0088932,01/09/2023,FIN0336561,68.13,N,,N,N
Pendle Borough Council,Finance,Premises Related Expense,Electricity,2203,EDF ENERGY,A0088932,01/09/2023,FIN0336561,72.57,N,,N,N
Pendle Borough Council,Finance,Premises Related Expense,Electricity,2203,EDF ENERGY,A0088932,01/09/2023,FIN0336561,-1703.63,N,,N,N
Pendle Borough Council,Finance,Premises Related Expense,Electricity,2203,EDF ENERGY,A0088932,01/09/2023,FIN0336561,-1685.14,N,,N,N
Pendle Borough Council,Finance,Premises Related Expense,Electricity,2203,EDF ENERGY,A0088932,01/09/2023,FIN0336561,-1661.86,N,,N,N
Pendle Borough Council,Finance,Premises Related Expense,Electricity,2203,EDF ENERGY,A0088932,01/09/2023,FIN0336561,-1233.2,N,,N,N
Pendle Borough Council,Finance,Premises Related Expense,Electricity,2203,EDF ENERGY,A0088932,01/09/2023,FIN0336561,801.03,N,,N,N
Pendle Borough Council,Finance,Premises Related Expense,Electricity,2203,EDF ENERGY,A0088932,01/09/2023,FIN0336561,807.91,N,,N,N
Pendle Borough Council,Finance,Premises Related Expense,Electricity,2203,EDF ENERGY,A0088932,01/09/2023,FIN0336561,923.13,N,,N,N
Pendle Borough Council,Finance,Premises Related Expense,Electricity,2203,EDF ENERGY,A0088932,01/09/2023,FIN0336561,1265.44,N,,N,N
Pendle Borough Council,Finance,Premises Related Expense,Electricity,2203,EDF ENERGY,A0088932,01/09/2023,FIN0336561,1703.63,N,,N,N
Pendle Borough Council,Finance,Premises Related Expense,Electricity,2203,EDF ENERGY,A0088932,01/09/2023,FIN0336561,1774.26,N,,N,N
Pendle Borough Council,Finance,Premises Related Expense,Electricity,2203,EDF ENERGY,A0088932,01/09/2023,FIN0336561,338.17,N,,N,N
Pendle Borough Council,Finance,Premises Related Expense,Electricity,2203,EDF ENERGY,A0088932,01/09/2023,FIN0336561,453.99,N,,N,N
Pendle Borough Council,Finance,Supplies and Services,Other Expenses,4705,EDF ENERGY,A0088932,01/09/2023,FIN0336561,23.51,N,,N,N
Pendle Borough Council,Finance,Supplies and Services,Other Expenses,4705,EDF ENERGY,A0088932,01/09/2023,FIN0336561,24.28,N,,N,N
Pendle Borough Council,Finance,Supplies and Services,Other Expenses,4705,EDF ENERGY,A0088932,01/09/2023,FIN0336561,24.88,N,,N,N
Pendle Borough Council,Finance,Supplies and Services,Other Expenses,4705,EDF ENERGY,A0088932,01/09/2023,FIN0336561,25.7,N,,N,N
Pendle Borough Council,Operational Services,Transport Related Expense,Tprt : Repairs : General,3105,LANCASHIRE DAF,A0089429,14/09/2023,OPS0336436,101,N,,N,N
Pendle Borough Council,Housing & Environmental Health,Supplies and Services,Other Expenses,4705,ULTIMATE PROPERTY SOLUTIONS,A0090032,14/09/2023,HEH0336513,400,N,,N,N
Pendle Borough Council,Housing & Environmental Health,Premises Related Expense,Bldgs : R & M : Abnormal,2002,A B C ELECTRICAL,A0090085,07/09/2023,HEH0336062,175,N,,N,N
Pendle Borough Council,Policy & Commissioning,Supplies and Services,Publicity & advertisement,4704,WE LOVE CREATIVE LIMITED,A0090098,28/09/2023,POL0336772,400,N,,N,N
Pendle Borough Council,Policy & Commissioning,Supplies and Services,Other Expenses,4705,WE LOVE CREATIVE LIMITED,A0090098,28/09/2023,POL0336773,400,N,,N,N
Pendle Borough Council,Operational Services,,Stock : Purchases,PJ01,LANDSCAPE SUPPLY COMPANY,A0090209,14/09/2023,OPS0336478,119.76,N,,N,N
Pendle Borough Council,Finance,Transport Related Expense,Diesel Oil,3202,FUELMATE LTD,A0090265,26/09/2023,FIN0336913,47.38,N,,N,N
Pendle Borough Council,Finance,Transport Related Expense,Diesel Oil,3202,FUELMATE LTD,A0090265,19/09/2023,FIN0336912,177.8,N,,N,N
Pendle Borough Council,Finance,Transport Related Expense,Diesel Oil,3202,FUELMATE LTD,A0090265,12/09/2023,FIN0336911,236.17,N,,N,N
Pendle Borough Council,Finance,Transport Related Expense,Diesel Oil,3202,FUELMATE LTD,A0090265,05/09/2023,FIN0336910,270.06,N,,N,N
Pendle Borough Council,Finance,Transport Related Expense,Diesel Oil,3202,FUELMATE LTD,A0090265,19/09/2023,FIN0336912,292.51,N,,N,N
Pendle Borough Council,Finance,Transport Related Expense,Diesel Oil,3202,FUELMATE LTD,A0090265,26/09/2023,FIN0336913,351.49,N,,N,N
Pendle Borough Council,Finance,Transport Related Expense,Diesel Oil,3202,FUELMATE LTD,A0090265,12/09/2023,FIN0336911,365.5,N,,N,N
Pendle Borough Council,Finance,Transport Related Expense,Diesel Oil,3202,FUELMATE LTD,A0090265,19/09/2023,FIN0336912,203.06,N,,N,N
Pendle Borough Council,Finance,Transport Related Expense,Diesel Oil,3202,FUELMATE LTD,A0090265,12/09/2023,FIN0336911,260.51,N,,N,N
Pendle Borough Council,Finance,Transport Related Expense,Diesel Oil,3202,FUELMATE LTD,A0090265,05/09/2023,FIN0336910,294.01,N,,N,N
Pendle Borough Council,Finance,Transport Related Expense,Diesel Oil,3202,FUELMATE LTD,A0090265,26/09/2023,FIN0336913,299.05,N,,N,N
Pendle Borough Council,Finance,Transport Related Expense,Diesel Oil,3202,FUELMATE LTD,A0090265,26/09/2023,FIN0336913,266.48,N,,N,N
Pendle Borough Council,Finance,Transport Related Expense,Diesel Oil,3202,FUELMATE LTD,A0090265,12/09/2023,FIN0336911,270.47,N,,N,N
Pendle Borough Council,Finance,Transport Related Expense,Diesel Oil,3202,FUELMATE LTD,A0090265,19/09/2023,FIN0336912,380.33,N,,N,N
Pendle Borough Council,Finance,Transport Related Expense,Diesel Oil,3202,FUELMATE LTD,A0090265,05/09/2023,FIN0336910,389.01,N,,N,N
Pendle Borough Council,Finance,Transport Related Expense,Diesel Oil,3202,FUELMATE LTD,A0090265,12/09/2023,FIN0336911,248.95,N,,N,N
Pendle Borough Council,Finance,Transport Related Expense,Diesel Oil,3202,FUELMATE LTD,A0090265,26/09/2023,FIN0336913,304.2,N,,N,N
Pendle Borough Council,Finance,Transport Related Expense,Diesel Oil,3202,FUELMATE LTD,A0090265,19/09/2023,FIN0336912,339.51,N,,N,N
Pendle Borough Council,Finance,Transport Related Expense,Diesel Oil,3202,FUELMATE LTD,A0090265,05/09/2023,FIN0336910,341.18,N,,N,N
Pendle Borough Council,Finance,Transport Related Expense,Diesel Oil,3202,FUELMATE LTD,A0090265,12/09/2023,FIN0336911,231.17,N,,N,N
Pendle Borough Council,Finance,Transport Related Expense,Diesel Oil,3202,FUELMATE LTD,A0090265,26/09/2023,FIN0336913,234.16,N,,N,N
Pendle Borough Council,Finance,Transport Related Expense,Diesel Oil,3202,FUELMATE LTD,A0090265,05/09/2023,FIN0336910,348.54,N,,N,N
Pendle Borough Council,Finance,Transport Related Expense,Diesel Oil,3202,FUELMATE LTD,A0090265,19/09/2023,FIN0336912,357.27,N,,N,N
Pendle Borough Council,Finance,Transport Related Expense,Diesel Oil,3202,FUELMATE LTD,A0090265,19/09/2023,FIN0336912,164.6,N,,N,N
Pendle Borough Council,Finance,Transport Related Expense,Diesel Oil,3202,FUELMATE LTD,A0090265,12/09/2023,FIN0336911,230.61,N,,N,N
Pendle Borough Council,Finance,Transport Related Expense,Diesel Oil,3202,FUELMATE LTD,A0090265,05/09/2023,FIN0336910,332.55,N,,N,N
Pendle Borough Council,Finance,Transport Related Expense,Diesel Oil,3202,FUELMATE LTD,A0090265,26/09/2023,FIN0336913,362.52,N,,N,N
Pendle Borough Council,Finance,Transport Related Expense,Diesel Oil,3202,FUELMATE LTD,A0090265,26/09/2023,FIN0336913,156.66,N,,N,N
Pendle Borough Council,Finance,Transport Related Expense,Diesel Oil,3202,FUELMATE LTD,A0090265,26/09/2023,FIN0336913,280.29,N,,N,N
Pendle Borough Council,Finance,Transport Related Expense,Diesel Oil,3202,FUELMATE LTD,A0090265,12/09/2023,FIN0336911,309.52,N,,N,N
Pendle Borough Council,Finance,Transport Related Expense,Diesel Oil,3202,FUELMATE LTD,A0090265,05/09/2023,FIN0336910,314.97,N,,N,N
Pendle Borough Council,Finance,Transport Related Expense,Diesel Oil,3202,FUELMATE LTD,A0090265,19/09/2023,FIN0336912,389.04,N,,N,N
Pendle Borough Council,Finance,Transport Related Expense,Diesel Oil,3202,FUELMATE LTD,A0090265,05/09/2023,FIN0336910,260.8,N,,N,N
Pendle Borough Council,Finance,Transport Related Expense,Diesel Oil,3202,FUELMATE LTD,A0090265,19/09/2023,FIN0336912,290.55,N,,N,N
Pendle Borough Council,Finance,Transport Related Expense,Diesel Oil,3202,FUELMATE LTD,A0090265,12/09/2023,FIN0336911,317.89,N,,N,N
Pendle Borough Council,Finance,Transport Related Expense,Diesel Oil,3202,FUELMATE LTD,A0090265,26/09/2023,FIN0336913,323.19,N,,N,N
Pendle Borough Council,Finance,Transport Related Expense,Diesel Oil,3202,FUELMATE LTD,A0090265,05/09/2023,FIN0336910,155.32,N,,N,N
Pendle Borough Council,Finance,Transport Related Expense,Diesel Oil,3202,FUELMATE LTD,A0090265,26/09/2023,FIN0336913,220.08,N,,N,N
Pendle Borough Council,Finance,Transport Related Expense,Diesel Oil,3202,FUELMATE LTD,A0090265,12/09/2023,FIN0336911,225.51,N,,N,N
Pendle Borough Council,Finance,Transport Related Expense,Diesel Oil,3202,FUELMATE LTD,A0090265,19/09/2023,FIN0336912,309.43,N,,N,N
Pendle Borough Council,Finance,Transport Related Expense,Diesel Oil,3202,FUELMATE LTD,A0090265,05/09/2023,FIN0336910,155.45,N,,N,N
Pendle Borough Council,Finance,Transport Related Expense,Diesel Oil,3202,FUELMATE LTD,A0090265,19/09/2023,FIN0336912,177.73,N,,N,N
Pendle Borough Council,Finance,Transport Related Expense,Diesel Oil,3202,FUELMATE LTD,A0090265,12/09/2023,FIN0336911,284.32,N,,N,N
Pendle Borough Council,Finance,Transport Related Expense,Diesel Oil,3202,FUELMATE LTD,A0090265,26/09/2023,FIN0336913,291.79,N,,N,N
Pendle Borough Council,Finance,Transport Related Expense,Diesel Oil,3202,FUELMATE LTD,A0090265,12/09/2023,FIN0336911,75,N,,N,N
Pendle Borough Council,Finance,Transport Related Expense,Diesel Oil,3202,FUELMATE LTD,A0090265,05/09/2023,FIN0336910,138.24,N,,N,N
Pendle Borough Council,Finance,Transport Related Expense,Diesel Oil,3202,FUELMATE LTD,A0090265,26/09/2023,FIN0336913,235.91,N,,N,N
Pendle Borough Council,Finance,Transport Related Expense,Diesel Oil,3202,FUELMATE LTD,A0090265,19/09/2023,FIN0336912,262.61,N,,N,N
Pendle Borough Council,Finance,Transport Related Expense,Diesel Oil,3202,FUELMATE LTD,A0090265,05/09/2023,FIN0336910,108.57,N,,N,N
Pendle Borough Council,Finance,Transport Related Expense,Diesel Oil,3202,FUELMATE LTD,A0090265,19/09/2023,FIN0336912,258.66,N,,N,N
Pendle Borough Council,Finance,Transport Related Expense,Diesel Oil,3202,FUELMATE LTD,A0090265,26/09/2023,FIN0336913,269.74,N,,N,N
Pendle Borough Council,Finance,Transport Related Expense,Diesel Oil,3202,FUELMATE LTD,A0090265,12/09/2023,FIN0336911,149.44,N,,N,N
Pendle Borough Council,Finance,Transport Related Expense,Diesel Oil,3202,FUELMATE LTD,A0090265,19/09/2023,FIN0336912,222.17,N,,N,N
Pendle Borough Council,Finance,Transport Related Expense,Diesel Oil,3202,FUELMATE LTD,A0090265,26/09/2023,FIN0336913,234.59,N,,N,N
Pendle Borough Council,Finance,Transport Related Expense,Diesel Oil,3202,FUELMATE LTD,A0090265,19/09/2023,FIN0336912,169.7,N,,N,N
Pendle Borough Council,Finance,Transport Related Expense,Diesel Oil,3202,FUELMATE LTD,A0090265,05/09/2023,FIN0336910,184.98,N,,N,N
Pendle Borough Council,Finance,Transport Related Expense,Diesel Oil,3202,FUELMATE LTD,A0090265,12/09/2023,FIN0336911,185.23,N,,N,N
Pendle Borough Council,Finance,Transport Related Expense,Diesel Oil,3202,FUELMATE LTD,A0090265,12/09/2023,FIN0336911,49.6,N,,N,N
Pendle Borough Council,Finance,Transport Related Expense,Diesel Oil,3202,FUELMATE LTD,A0090265,05/09/2023,FIN0336910,67.82,N,,N,N
Pendle Borough Council,Finance,Transport Related Expense,Diesel Oil,3202,FUELMATE LTD,A0090265,19/09/2023,FIN0336912,158.85,N,,N,N
Pendle Borough Council,Finance,Transport Related Expense,Diesel Oil,3202,FUELMATE LTD,A0090265,26/09/2023,FIN0336913,170.67,N,,N,N
Pendle Borough Council,Finance,Transport Related Expense,Diesel Oil,3202,FUELMATE LTD,A0090265,26/09/2023,FIN0336913,68.69,N,,N,N
Pendle Borough Council,Finance,Transport Related Expense,Diesel Oil,3202,FUELMATE LTD,A0090265,12/09/2023,FIN0336911,121.49,N,,N,N
Pendle Borough Council,Finance,Transport Related Expense,Diesel Oil,3202,FUELMATE LTD,A0090265,05/09/2023,FIN0336910,126.57,N,,N,N
Pendle Borough Council,Finance,Transport Related Expense,Diesel Oil,3202,FUELMATE LTD,A0090265,19/09/2023,FIN0336912,134.52,N,,N,N
Pendle Borough Council,Finance,Transport Related Expense,Diesel Oil,3202,FUELMATE LTD,A0090265,12/09/2023,FIN0336911,57.62,N,,N,N
Pendle Borough Council,Finance,Transport Related Expense,Diesel Oil,3202,FUELMATE LTD,A0090265,05/09/2023,FIN0336910,115.35,N,,N,N
Pendle Borough Council,Finance,Transport Related Expense,Diesel Oil,3202,FUELMATE LTD,A0090265,26/09/2023,FIN0336913,192.92,N,,N,N
Pendle Borough Council,Finance,Transport Related Expense,Diesel Oil,3202,FUELMATE LTD,A0090265,19/09/2023,FIN0336912,244.95,N,,N,N
Pendle Borough Council,Finance,Transport Related Expense,Diesel Oil,3202,FUELMATE LTD,A0090265,19/09/2023,FIN0336912,45.21,N,,N,N
Pendle Borough Council,Finance,Transport Related Expense,Diesel Oil,3202,FUELMATE LTD,A0090265,26/09/2023,FIN0336913,47.6,N,,N,N
Pendle Borough Council,Finance,Transport Related Expense,Diesel Oil,3202,FUELMATE LTD,A0090265,12/09/2023,FIN0336911,49.41,N,,N,N
Pendle Borough Council,Finance,Transport Related Expense,Diesel Oil,3202,FUELMATE LTD,A0090265,05/09/2023,FIN0336910,83.92,N,,N,N
Pendle Borough Council,Finance,Transport Related Expense,Diesel Oil,3202,FUELMATE LTD,A0090265,26/09/2023,FIN0336913,46.41,N,,N,N
Pendle Borough Council,Finance,Transport Related Expense,Diesel Oil,3202,FUELMATE LTD,A0090265,12/09/2023,FIN0336911,98.04,N,,N,N
Pendle Borough Council,Finance,Transport Related Expense,Diesel Oil,3202,FUELMATE LTD,A0090265,26/09/2023,FIN0336913,74.09,N,,N,N
Pendle Borough Council,Finance,Transport Related Expense,Diesel Oil,3202,FUELMATE LTD,A0090265,05/09/2023,FIN0336910,78.29,N,,N,N
Pendle Borough Council,Finance,Transport Related Expense,Diesel Oil,3202,FUELMATE LTD,A0090265,12/09/2023,FIN0336911,79.51,N,,N,N
Pendle Borough Council,Finance,Transport Related Expense,Diesel Oil,3202,FUELMATE LTD,A0090265,19/09/2023,FIN0336912,68.3,N,,N,N
Pendle Borough Council,Finance,Transport Related Expense,Diesel Oil,3202,FUELMATE LTD,A0090265,12/09/2023,FIN0336911,59.02,N,,N,N
Pendle Borough Council,Finance,Transport Related Expense,Diesel Oil,3202,FUELMATE LTD,A0090265,19/09/2023,FIN0336912,62.52,N,,N,N
Pendle Borough Council,Finance,Transport Related Expense,Diesel Oil,3202,FUELMATE LTD,A0090265,05/09/2023,FIN0336910,64.03,N,,N,N
Pendle Borough Council,Finance,Transport Related Expense,Diesel Oil,3202,FUELMATE LTD,A0090265,26/09/2023,FIN0336913,126.7,N,,N,N
Pendle Borough Council,Finance,Transport Related Expense,Diesel Oil,3202,FUELMATE LTD,A0090265,12/09/2023,FIN0336911,52.73,N,,N,N
Pendle Borough Council,Finance,Transport Related Expense,Diesel Oil,3202,FUELMATE LTD,A0090265,05/09/2023,FIN0336910,65.96,N,,N,N
Pendle Borough Council,Finance,Transport Related Expense,Diesel Oil,3202,FUELMATE LTD,A0090265,26/09/2023,FIN0336913,111.19,N,,N,N
Pendle Borough Council,Finance,Transport Related Expense,Diesel Oil,3202,FUELMATE LTD,A0090265,19/09/2023,FIN0336912,130.39,N,,N,N
Pendle Borough Council,Finance,Transport Related Expense,Diesel Oil,3202,FUELMATE LTD,A0090265,19/09/2023,FIN0336912,56.12,N,,N,N
Pendle Borough Council,Finance,Transport Related Expense,Diesel Oil,3202,FUELMATE LTD,A0090265,12/09/2023,FIN0336911,58.11,N,,N,N
Pendle Borough Council,Finance,Transport Related Expense,Diesel Oil,3202,FUELMATE LTD,A0090265,26/09/2023,FIN0336913,61.99,N,,N,N
Pendle Borough Council,Finance,Transport Related Expense,Diesel Oil,3202,FUELMATE LTD,A0090265,05/09/2023,FIN0336910,95.44,N,,N,N
Pendle Borough Council,Finance,Transport Related Expense,Diesel Oil,3202,FUELMATE LTD,A0090265,26/09/2023,FIN0336913,40.25,N,,N,N
Pendle Borough Council,Finance,Transport Related Expense,Diesel Oil,3202,FUELMATE LTD,A0090265,12/09/2023,FIN0336911,59.79,N,,N,N
Pendle Borough Council,Finance,Transport Related Expense,Diesel Oil,3202,FUELMATE LTD,A0090265,19/09/2023,FIN0336912,113.04,N,,N,N
Pendle Borough Council,Finance,Transport Related Expense,Diesel Oil,3202,FUELMATE LTD,A0090265,05/09/2023,FIN0336910,57.46,N,,N,N
Pendle Borough Council,Finance,Transport Related Expense,Diesel Oil,3202,FUELMATE LTD,A0090265,26/09/2023,FIN0336913,64.4,N,,N,N
Pendle Borough Council,Finance,Transport Related Expense,Diesel Oil,3202,FUELMATE LTD,A0090265,19/09/2023,FIN0336912,64.85,N,,N,N
Pendle Borough Council,Finance,Transport Related Expense,Diesel Oil,3202,FUELMATE LTD,A0090265,12/09/2023,FIN0336911,66.26,N,,N,N
Pendle Borough Council,Finance,Transport Related Expense,Diesel Oil,3202,FUELMATE LTD,A0090265,26/09/2023,FIN0336913,57.36,N,,N,N
Pendle Borough Council,Finance,Transport Related Expense,Diesel Oil,3202,FUELMATE LTD,A0090265,12/09/2023,FIN0336911,67.01,N,,N,N
Pendle Borough Council,Finance,Transport Related Expense,Diesel Oil,3202,FUELMATE LTD,A0090265,19/09/2023,FIN0336912,70.82,N,,N,N
Pendle Borough Council,Finance,Transport Related Expense,Diesel Oil,3202,FUELMATE LTD,A0090265,05/09/2023,FIN0336910,71.67,N,,N,N
Pendle Borough Council,Finance,Transport Related Expense,Diesel Oil,3202,FUELMATE LTD,A0090265,05/09/2023,FIN0336910,45.84,N,,N,N
Pendle Borough Council,Finance,Transport Related Expense,Diesel Oil,3202,FUELMATE LTD,A0090265,26/09/2023,FIN0336913,48.53,N,,N,N
Pendle Borough Council,Finance,Transport Related Expense,Diesel Oil,3202,FUELMATE LTD,A0090265,19/09/2023,FIN0336912,52.51,N,,N,N
Pendle Borough Council,Finance,Transport Related Expense,Diesel Oil,3202,FUELMATE LTD,A0090265,12/09/2023,FIN0336911,42.04,N,,N,N
Pendle Borough Council,Finance,Transport Related Expense,Diesel Oil,3202,FUELMATE LTD,A0090265,19/09/2023,FIN0336912,45.25,N,,N,N
Pendle Borough Council,Finance,Transport Related Expense,Diesel Oil,3202,FUELMATE LTD,A0090265,05/09/2023,FIN0336910,25.21,N,,N,N
Pendle Borough Council,Finance,Transport Related Expense,Diesel Oil,3202,FUELMATE LTD,A0090265,12/09/2023,FIN0336911,30.66,N,,N,N
Pendle Borough Council,Finance,Transport Related Expense,Diesel Oil,3202,FUELMATE LTD,A0090265,26/09/2023,FIN0336913,32.83,N,,N,N
Pendle Borough Council,Finance,Transport Related Expense,Diesel Oil,3202,FUELMATE LTD,A0090265,05/09/2023,FIN0336910,45.51,N,,N,N
Pendle Borough Council,Finance,Transport Related Expense,Diesel Oil,3202,FUELMATE LTD,A0090265,19/09/2023,FIN0336912,52.41,N,,N,N
Pendle Borough Council,Finance,Transport Related Expense,Diesel Oil,3202,FUELMATE LTD,A0090265,26/09/2023,FIN0336913,8.01,N,,N,N
Pendle Borough Council,Finance,Transport Related Expense,Diesel Oil,3202,FUELMATE LTD,A0090265,12/09/2023,FIN0336911,47.49,N,,N,N
Pendle Borough Council,Finance,Transport Related Expense,Diesel Oil,3202,FUELMATE LTD,A0090265,05/09/2023,FIN0336910,56.26,N,,N,N
Pendle Borough Council,Finance,Transport Related Expense,Diesel Oil,3202,FUELMATE LTD,A0090265,19/09/2023,FIN0336912,58.25,N,,N,N
Pendle Borough Council,Finance,Transport Related Expense,Diesel Oil,3202,FUELMATE LTD,A0090265,05/09/2023,FIN0336910,76.28,N,,N,N
Pendle Borough Council,Finance,Transport Related Expense,Diesel Oil,3202,FUELMATE LTD,A0090265,19/09/2023,FIN0336912,88.95,N,,N,N
Pendle Borough Council,Finance,Transport Related Expense,Diesel Oil,3202,FUELMATE LTD,A0090265,19/09/2023,FIN0336912,59.09,N,,N,N
Pendle Borough Council,Finance,Transport Related Expense,Diesel Oil,3202,FUELMATE LTD,A0090265,26/09/2023,FIN0336913,64.36,N,,N,N
Pendle Borough Council,Finance,Transport Related Expense,Diesel Oil,3202,FUELMATE LTD,A0090265,05/09/2023,FIN0336910,68.18,N,,N,N
Pendle Borough Council,Finance,Transport Related Expense,Diesel Oil,3202,FUELMATE LTD,A0090265,05/09/2023,FIN0336910,72.84,N,,N,N
Pendle Borough Council,Finance,Transport Related Expense,Diesel Oil,3202,FUELMATE LTD,A0090265,26/09/2023,FIN0336913,69.7,N,,N,N
Pendle Borough Council,Finance,Transport Related Expense,Diesel Oil,3202,FUELMATE LTD,A0090265,05/09/2023,FIN0336910,55.97,N,,N,N
Pendle Borough Council,Finance,Transport Related Expense,Diesel Oil,3202,FUELMATE LTD,A0090265,05/09/2023,FIN0336910,69.27,N,,N,N
Pendle Borough Council,Finance,Transport Related Expense,Diesel Oil,3202,FUELMATE LTD,A0090265,05/09/2023,FIN0336910,40.27,N,,N,N
Pendle Borough Council,Finance,Transport Related Expense,Diesel Oil,3202,FUELMATE LTD,A0090265,05/09/2023,FIN0336910,38.64,N,,N,N
Pendle Borough Council,Finance,Transport Related Expense,Diesel Oil,3202,FUELMATE LTD,A0090265,19/09/2023,FIN0336912,61.02,N,,N,N
Pendle Borough Council,Finance,Transport Related Expense,Diesel Oil,3202,FUELMATE LTD,A0090265,12/09/2023,FIN0336911,126.78,N,,N,N
Pendle Borough Council,Finance,,Precept Parish & T Council,0303,BARNOLDSWICK TOWN COUNCIL,A0090352,28/09/2023,FIN0336687,73750,N,,N,N
Pendle Borough Council,Economic Growth,Premises Related Expense,Grounds : R & M : Day to Day : Routine,2101,GREEN CLEAN RESTORATION,A0090368,21/09/2023,ECO0336559,4970,N,,N,N
Pendle Borough Council,Finance,,Precept Parish & T Council,0303,SALTERFORTH PARISH COUNCIL,A0090441,28/09/2023,FIN0336702,5250,N,,N,N
Pendle Borough Council,Finance,,Precept Parish & T Council,0303,HIGHAM WITH WEST CLOSE BOOTH PC,A0090493,28/09/2023,FIN0336695,4987.5,N,,N,N
Pendle Borough Council,Operational Services,Premises Related Expense,Grounds : R & M : Day to Day : Routine,2101,TREETOPS DE-VEGETATION SERVICES LIMITED,A0090701,14/09/2023,OPS0336446,95,N,,N,N
Pendle Borough Council,Revenues Services,Supplies and Services,DSS Collection Fee,4414,PS&P LTD,A0090720,07/09/2023,TRE0336240,12,N,,N,N
Pendle Borough Council,Property Services,Capital Costs,Capital: Construction: Conversion/Refu,CD57,B & E BOYS LIMITED,A0090790,14/09/2023,EST0336494,138536.41,N,,N,N
Pendle Borough Council,Finance,Premises Related Expense,Gas,2202,SEFE ENERGY LIMITED,A0090838,28/09/2023,FIN0336917,18.54,N,,N,N
Pendle Borough Council,Finance,Premises Related Expense,Gas,2202,SEFE ENERGY LIMITED,A0090838,28/09/2023,FIN0336918,30.18,N,,N,N
Pendle Borough Council,Finance,Premises Related Expense,Gas,2202,SEFE ENERGY LIMITED,A0090838,28/09/2023,FIN0336930,82.28,N,,N,N
Pendle Borough Council,Finance,Premises Related Expense,Gas,2202,SEFE ENERGY LIMITED,A0090838,28/09/2023,FIN0336931,105.89,N,,N,N
Pendle Borough Council,Finance,Premises Related Expense,Gas,2202,SEFE ENERGY LIMITED,A0090838,28/09/2023,FIN0336925,92.64,N,,N,N
Pendle Borough Council,Finance,Premises Related Expense,Gas,2202,SEFE ENERGY LIMITED,A0090838,28/09/2023,FIN0336929,216.32,N,,N,N
Pendle Borough Council,Finance,Premises Related Expense,Gas,2202,SEFE ENERGY LIMITED,A0090838,28/09/2023,FIN0336932,63.11,N,,N,N
Pendle Borough Council,Finance,Premises Related Expense,Gas,2202,SEFE ENERGY LIMITED,A0090838,28/09/2023,FIN0336914,133.14,N,,N,N
Pendle Borough Council,Finance,Premises Related Expense,Gas,2202,SEFE ENERGY LIMITED,A0090838,28/09/2023,FIN0336919,25.51,N,,N,N
Pendle Borough Council,Finance,Premises Related Expense,Gas,2202,SEFE ENERGY LIMITED,A0090838,28/09/2023,FIN0336916,39.4,N,,N,N
Pendle Borough Council,Finance,Premises Related Expense,Gas,2202,SEFE ENERGY LIMITED,A0090838,28/09/2023,FIN0336915,31.14,N,,N,N
Pendle Borough Council,Finance,Premises Related Expense,Gas,2202,SEFE ENERGY LIMITED,A0090838,28/09/2023,FIN0336927,99.34,N,,N,N
Pendle Borough Council,Finance,Premises Related Expense,Gas,2202,SEFE ENERGY LIMITED,A0090838,28/09/2023,FIN0336922,41.39,N,,N,N
Pendle Borough Council,Operational Services,Transport Related Expense,Tprt : Repairs : General,3105,SUPER AUTO SAVER,A0090951,28/09/2023,OPS0336706,16,N,,N,N
Pendle Borough Council,Human Resources,Indirect Employee Expenses,Emp : Medical Expenses,1236,ALCODIGITAL LIMITED,A0091044,28/09/2023,PER0336769,7.5,N,,N,N
Pendle Borough Council,Human Resources,Indirect Employee Expenses,Emp : Medical Expenses,1236,ALCODIGITAL LIMITED,A0091044,28/09/2023,PER0336769,316,N,,N,N
Pendle Borough Council,Finance,,Precept Parish & T Council,0303,BRIERFIELD TOWN COUNCIL - PRECEPTS ONLY,A0091165,28/09/2023,FIN0336690,46035,N,,N,N
Pendle Borough Council,Housing & Environmental Health,Supplies and Services,Other Expenses,4705,RICARDO ENERGY & ENVIRONMENT,A0091325,14/09/2023,HEH0336454,2158,N,,N,N
Pendle Borough Council,Housing & Environmental Health,Capital Costs,Ren Grant : 1996 Act,CH22,THE EXCELLENT RAMP SYSTEM LIMITED,A0091363,21/09/2023,HEH0336584,2460,N,,N,N
Pendle Borough Council,Housing & Environmental Health,Capital Costs,Ren Grant : 1996 Act,CH22,THE EXCELLENT RAMP SYSTEM LIMITED,A0091363,21/09/2023,HEH0336577,3180,N,,N,N
Pendle Borough Council,Housing & Environmental Health,Capital Costs,Ren Grant : 1996 Act,CH22,THE EXCELLENT RAMP SYSTEM LIMITED,A0091363,21/09/2023,HEH0336576,3965,N,,N,N
Pendle Borough Council,Operational Services,Transport Related Expense,Diesel Oil,3202,WCF LIMITED,A0091385,07/09/2023,OPS0336264,580,N,,N,N
Pendle Borough Council,I.T Services,Supplies and Services,EFM : Office and computer equipment,4002,STORM TECHNOLOGIES LIMITED,A0091493,21/09/2023,ITS0336600,486,N,,N,N
Pendle Borough Council,I.T Services,Supplies and Services,EFM : Office and computer equipment,4002,STORM TECHNOLOGIES LIMITED,A0091493,21/09/2023,ITS0336600,243,N,,N,N
Pendle Borough Council,I.T Services,Supplies and Services,EFM : Other Equipment,4003,STORM TECHNOLOGIES LIMITED,A0091493,21/09/2023,ITS0336598,149.23,N,,N,N
Pendle Borough Council,"Planning, Building Control & Regulatory Services",,Fees Income : Non-VATable,9302,PORTALPLANQUEST LIMITED,A0091554,07/09/2023,PBC0336357,231,N,,N,N
Pendle Borough Council,Operational Services,Agency Staff,Emp : Basic Wages,1001,NW RECRUITMENT SERVICES LIMITED,A0091588,14/09/2023,OPS0336440,4257.95,N,,N,N
Pendle Borough Council,Operational Services,Agency Staff,Emp : Basic Wages,1001,NW RECRUITMENT SERVICES LIMITED,A0091588,07/09/2023,OPS0336292,5134.48,N,,N,N
Pendle Borough Council,Operational Services,Agency Staff,Emp : Basic Wages,1001,NW RECRUITMENT SERVICES LIMITED,A0091588,21/09/2023,OPS0336623,5285.13,N,,N,N
Pendle Borough Council,Operational Services,Agency Staff,Emp : Basic Wages,1001,NW RECRUITMENT SERVICES LIMITED,A0091588,28/09/2023,OPS0336709,5645.77,N,,N,N
Pendle Borough Council,Operational Services,Agency Staff,Emp : Basic Wages,1001,NW RECRUITMENT SERVICES LIMITED,A0091588,07/09/2023,OPS0336281,5668.24,N,,N,N
Pendle Borough Council,Legal & Democratic Services,Agency Staff,Emp : Agency Wages,1004,NW RECRUITMENT SERVICES LIMITED,A0091588,28/09/2023,LAD0336682,59.92,N,,N,N
Pendle Borough Council,Legal & Democratic Services,Agency Staff,Emp : Agency Wages,1004,NW RECRUITMENT SERVICES LIMITED,A0091588,07/09/2023,LAD0336298,149.8,N,,N,N
Pendle Borough Council,Legal & Democratic Services,Agency Staff,Emp : Agency Wages,1004,NW RECRUITMENT SERVICES LIMITED,A0091588,07/09/2023,LAD0336299,149.8,N,,N,N
Pendle Borough Council,Legal & Democratic Services,Agency Staff,Emp : Agency Wages,1004,NW RECRUITMENT SERVICES LIMITED,A0091588,07/09/2023,LAD0336300,149.8,N,,N,N
Pendle Borough Council,Legal & Democratic Services,Agency Staff,Emp : Agency Wages,1004,NW RECRUITMENT SERVICES LIMITED,A0091588,07/09/2023,LAD0336301,149.8,N,,N,N
Pendle Borough Council,Legal & Democratic Services,Agency Staff,Emp : Agency Wages,1004,NW RECRUITMENT SERVICES LIMITED,A0091588,07/09/2023,LAD0336306,149.8,N,,N,N
Pendle Borough Council,Legal & Democratic Services,Agency Staff,Emp : Agency Wages,1004,NW RECRUITMENT SERVICES LIMITED,A0091588,07/09/2023,LAD0336302,171.4,N,,N,N
Pendle Borough Council,Legal & Democratic Services,Agency Staff,Emp : Agency Wages,1004,NW RECRUITMENT SERVICES LIMITED,A0091588,07/09/2023,LAD0336303,184.38,N,,N,N
Pendle Borough Council,Legal & Democratic Services,Agency Staff,Emp : Agency Wages,1004,NW RECRUITMENT SERVICES LIMITED,A0091588,07/09/2023,LAD0336305,187.25,N,,N,N
Pendle Borough Council,Legal & Democratic Services,Agency Staff,Emp : Agency Wages,1004,NW RECRUITMENT SERVICES LIMITED,A0091588,07/09/2023,LAD0336304,209.72,N,,N,N
Pendle Borough Council,Legal & Democratic Services,Agency Staff,Emp : Agency Wages,1004,NW RECRUITMENT SERVICES LIMITED,A0091588,14/09/2023,LAD0336479,325.81,N,,N,N
Pendle Borough Council,Operational Services,Agency Staff,Emp : Agency Wages,1004,NW RECRUITMENT SERVICES LIMITED,A0091588,14/09/2023,OPS0336441,200.61,N,,N,N
Pendle Borough Council,Operational Services,Agency Staff,Emp : Agency Wages,1004,NW RECRUITMENT SERVICES LIMITED,A0091588,07/09/2023,OPS0336291,218.85,N,,N,N
Pendle Borough Council,Operational Services,Agency Staff,Emp : Agency Wages,1004,NW RECRUITMENT SERVICES LIMITED,A0091588,28/09/2023,OPS0336734,269.91,N,,N,N
Pendle Borough Council,Operational Services,Agency Staff,Emp : Agency Wages,1004,NW RECRUITMENT SERVICES LIMITED,A0091588,21/09/2023,OPS0336626,372.04,N,,N,N
Pendle Borough Council,Operational Services,Agency Staff,Emp : Agency Wages,1004,NW RECRUITMENT SERVICES LIMITED,A0091588,21/09/2023,OPS0336611,3310.17,N,,N,N
Pendle Borough Council,Operational Services,Agency Staff,Emp : Agency Wages,1004,NW RECRUITMENT SERVICES LIMITED,A0091588,21/09/2023,OPS0336614,4239.8,N,,N,N
Pendle Borough Council,Operational Services,Agency Staff,Emp : Agency Wages,1004,NW RECRUITMENT SERVICES LIMITED,A0091588,21/09/2023,OPS0336613,4773.02,N,,N,N
Pendle Borough Council,Operational Services,Agency Staff,Emp : Agency Wages,1004,NW RECRUITMENT SERVICES LIMITED,A0091588,14/09/2023,OPS0336457,6022.43,N,,N,N
Pendle Borough Council,Operational Services,Agency Staff,Emp : Agency Wages,1004,NW RECRUITMENT SERVICES LIMITED,A0091588,21/09/2023,OPS0336611,1573.55,N,,N,N
Pendle Borough Council,Operational Services,Agency Staff,Emp : Agency Wages,1004,NW RECRUITMENT SERVICES LIMITED,A0091588,14/09/2023,OPS0336457,2505.93,N,,N,N
Pendle Borough Council,Operational Services,Agency Staff,Emp : Agency Wages,1004,NW RECRUITMENT SERVICES LIMITED,A0091588,21/09/2023,OPS0336613,4047.54,N,,N,N
Pendle Borough Council,Operational Services,Agency Staff,Emp : Agency Wages,1004,NW RECRUITMENT SERVICES LIMITED,A0091588,21/09/2023,OPS0336614,4335.03,N,,N,N
Pendle Borough Council,Operational Services,Agency Staff,Emp : Agency Wages,1004,NW RECRUITMENT SERVICES LIMITED,A0091588,21/09/2023,OPS0336613,1028.83,N,,N,N
Pendle Borough Council,Operational Services,Agency Staff,Emp : Agency Wages,1004,NW RECRUITMENT SERVICES LIMITED,A0091588,14/09/2023,OPS0336457,1224.03,N,,N,N
Pendle Borough Council,Operational Services,Agency Staff,Emp : Agency Wages,1004,NW RECRUITMENT SERVICES LIMITED,A0091588,21/09/2023,OPS0336611,1329.13,N,,N,N
Pendle Borough Council,Operational Services,Agency Staff,Emp : Agency Wages,1004,NW RECRUITMENT SERVICES LIMITED,A0091588,21/09/2023,OPS0336614,2036.72,N,,N,N
Pendle Borough Council,Operational Services,Transport Related Expense,Tprt : Repairs : General,3105,GO PLANT FLEET SERVICES LIMITED,A0091600,14/09/2023,OPS0336465,55,N,,N,N
Pendle Borough Council,Operational Services,Transport Related Expense,Tprt : Annual Hire Charge,3601,GO PLANT FLEET SERVICES LIMITED,A0091600,07/09/2023,OPS0336316,3540.62,N,,N,N
Pendle Borough Council,Operational Services,Transport Related Expense,Tprt : Annual Hire Charge,3601,GO PLANT FLEET SERVICES LIMITED,A0091600,07/09/2023,OPS0336316,3540.62,N,,N,N
Pendle Borough Council,Operational Services,Transport Related Expense,Tprt : Annual Hire Charge,3601,GO PLANT FLEET SERVICES LIMITED,A0091600,07/09/2023,OPS0336316,3540.62,N,,N,N
Pendle Borough Council,Operational Services,Transport Related Expense,Tprt : Annual Hire Charge,3601,GO PLANT FLEET SERVICES LIMITED,A0091600,07/09/2023,OPS0336316,3540.62,N,,N,N
Pendle Borough Council,Operational Services,Transport Related Expense,Tprt : Annual Hire Charge,3601,GO PLANT FLEET SERVICES LIMITED,A0091600,07/09/2023,OPS0336316,3540.62,N,,N,N
Pendle Borough Council,Operational Services,Transport Related Expense,Tprt : Annual Hire Charge,3601,GO PLANT FLEET SERVICES LIMITED,A0091600,07/09/2023,OPS0336316,3344.64,N,,N,N
Pendle Borough Council,Operational Services,Transport Related Expense,Tprt : Annual Hire Charge,3601,GO PLANT FLEET SERVICES LIMITED,A0091600,07/09/2023,OPS0336316,3540.62,N,,N,N
Pendle Borough Council,Operational Services,Transport Related Expense,Tprt : Annual Hire Charge,3601,GO PLANT FLEET SERVICES LIMITED,A0091600,07/09/2023,OPS0336316,3540.62,N,,N,N
Pendle Borough Council,Operational Services,Transport Related Expense,Tprt : Annual Hire Charge,3601,GO PLANT FLEET SERVICES LIMITED,A0091600,07/09/2023,OPS0336316,3549.74,N,,N,N
Pendle Borough Council,Operational Services,Transport Related Expense,Tprt : Annual Hire Charge,3601,GO PLANT FLEET SERVICES LIMITED,A0091600,07/09/2023,OPS0336316,3549.74,N,,N,N
Pendle Borough Council,Operational Services,Transport Related Expense,Tprt : Annual Hire Charge,3601,GO PLANT FLEET SERVICES LIMITED,A0091600,07/09/2023,OPS0336316,3549.74,N,,N,N
Pendle Borough Council,Operational Services,Transport Related Expense,Tprt : Annual Hire Charge,3601,GO PLANT FLEET SERVICES LIMITED,A0091600,07/09/2023,OPS0336316,3497.07,N,,N,N
Pendle Borough Council,Operational Services,Transport Related Expense,Tprt : Annual Hire Charge,3601,GO PLANT FLEET SERVICES LIMITED,A0091600,07/09/2023,OPS0336316,3393,N,,N,N
Pendle Borough Council,Operational Services,Transport Related Expense,Tprt : Annual Hire Charge,3601,GO PLANT FLEET SERVICES LIMITED,A0091600,07/09/2023,OPS0336316,2654.17,N,,N,N
Pendle Borough Council,Operational Services,Transport Related Expense,Tprt : Annual Hire Charge,3601,GO PLANT FLEET SERVICES LIMITED,A0091600,07/09/2023,OPS0336316,1981.53,N,,N,N
Pendle Borough Council,Operational Services,Transport Related Expense,Tprt : Annual Hire Charge,3601,GO PLANT FLEET SERVICES LIMITED,A0091600,07/09/2023,OPS0336316,1981.53,N,,N,N
Pendle Borough Council,Operational Services,Transport Related Expense,Tprt : Annual Hire Charge,3601,GO PLANT FLEET SERVICES LIMITED,A0091600,07/09/2023,OPS0336316,1981.53,N,,N,N
Pendle Borough Council,Operational Services,Transport Related Expense,Tprt : Annual Hire Charge,3601,GO PLANT FLEET SERVICES LIMITED,A0091600,07/09/2023,OPS0336316,1981.53,N,,N,N
Pendle Borough Council,Operational Services,Transport Related Expense,Tprt : Annual Hire Charge,3601,GO PLANT FLEET SERVICES LIMITED,A0091600,07/09/2023,OPS0336316,1981.53,N,,N,N
Pendle Borough Council,Operational Services,Transport Related Expense,Tprt : Annual Hire Charge,3601,GO PLANT FLEET SERVICES LIMITED,A0091600,07/09/2023,OPS0336316,509.54,N,,N,N
Pendle Borough Council,Operational Services,Transport Related Expense,Tprt : Annual Hire Charge,3601,GO PLANT FLEET SERVICES LIMITED,A0091600,07/09/2023,OPS0336316,598.81,N,,N,N
Pendle Borough Council,Operational Services,Transport Related Expense,Tprt : Annual Hire Charge,3601,GO PLANT FLEET SERVICES LIMITED,A0091600,07/09/2023,OPS0336316,650,N,,N,N
Pendle Borough Council,Operational Services,Transport Related Expense,Tprt : Annual Hire Charge,3601,GO PLANT FLEET SERVICES LIMITED,A0091600,07/09/2023,OPS0336316,598.81,N,,N,N
Pendle Borough Council,Operational Services,Transport Related Expense,Tprt : Annual Hire Charge,3601,GO PLANT FLEET SERVICES LIMITED,A0091600,07/09/2023,OPS0336316,598.81,N,,N,N
Pendle Borough Council,Operational Services,Transport Related Expense,Tprt : Annual Hire Charge,3601,GO PLANT FLEET SERVICES LIMITED,A0091600,07/09/2023,OPS0336316,650,N,,N,N
Pendle Borough Council,Operational Services,Transport Related Expense,Tprt : Annual Hire Charge,3601,GO PLANT FLEET SERVICES LIMITED,A0091600,07/09/2023,OPS0336316,598.81,N,,N,N
Pendle Borough Council,Operational Services,Transport Related Expense,Tprt : Annual Hire Charge,3601,GO PLANT FLEET SERVICES LIMITED,A0091600,07/09/2023,OPS0336316,239.53,N,,N,N
Pendle Borough Council,Operational Services,Transport Related Expense,Tprt : Annual Hire Charge,3601,GO PLANT FLEET SERVICES LIMITED,A0091600,07/09/2023,OPS0336316,239.53,N,,N,N
Pendle Borough Council,Operational Services,Transport Related Expense,Tprt : Annual Hire Charge,3601,GO PLANT FLEET SERVICES LIMITED,A0091600,07/09/2023,OPS0336316,239.53,N,,N,N
Pendle Borough Council,Operational Services,Transport Related Expense,Tprt : Annual Hire Charge,3601,GO PLANT FLEET SERVICES LIMITED,A0091600,07/09/2023,OPS0336316,239.53,N,,N,N
Pendle Borough Council,Operational Services,Transport Related Expense,Tprt : Annual Hire Charge,3601,GO PLANT FLEET SERVICES LIMITED,A0091600,07/09/2023,OPS0336316,239.53,N,,N,N
Pendle Borough Council,Operational Services,Transport Related Expense,Tprt : Annual Hire Charge,3601,GO PLANT FLEET SERVICES LIMITED,A0091600,07/09/2023,OPS0336316,239.53,N,,N,N
Pendle Borough Council,Operational Services,Transport Related Expense,Tprt : Annual Hire Charge,3601,GO PLANT FLEET SERVICES LIMITED,A0091600,07/09/2023,OPS0336316,239.53,N,,N,N
Pendle Borough Council,Operational Services,Transport Related Expense,Tprt : Annual Hire Charge,3601,GO PLANT FLEET SERVICES LIMITED,A0091600,07/09/2023,OPS0336316,339.69,N,,N,N
Pendle Borough Council,Operational Services,Transport Related Expense,Tprt : Annual Hire Charge,3601,GO PLANT FLEET SERVICES LIMITED,A0091600,14/09/2023,OPS0336464,951.08,N,,N,N
Pendle Borough Council,Operational Services,Transport Related Expense,Tprt : Annual Hire Charge,3601,GO PLANT FLEET SERVICES LIMITED,A0091600,07/09/2023,OPS0336316,592.28,N,,N,N
Pendle Borough Council,Operational Services,Transport Related Expense,Tprt : Annual Hire Charge,3601,GO PLANT FLEET SERVICES LIMITED,A0091600,07/09/2023,OPS0336316,592.28,N,,N,N
Pendle Borough Council,Operational Services,Transport Related Expense,Tprt : Annual Hire Charge,3601,GO PLANT FLEET SERVICES LIMITED,A0091600,07/09/2023,OPS0336316,592.28,N,,N,N
Pendle Borough Council,Operational Services,Transport Related Expense,Tprt : Annual Hire Charge,3601,GO PLANT FLEET SERVICES LIMITED,A0091600,07/09/2023,OPS0336316,592.28,N,,N,N
Pendle Borough Council,Operational Services,Transport Related Expense,Tprt : Annual Hire Charge,3601,GO PLANT FLEET SERVICES LIMITED,A0091600,07/09/2023,OPS0336316,592.28,N,,N,N
Pendle Borough Council,Operational Services,Transport Related Expense,Tprt : Annual Hire Charge,3601,GO PLANT FLEET SERVICES LIMITED,A0091600,07/09/2023,OPS0336316,535.67,N,,N,N
Pendle Borough Council,Operational Services,Transport Related Expense,Tprt : Annual Hire Charge,3601,GO PLANT FLEET SERVICES LIMITED,A0091600,07/09/2023,OPS0336316,239.53,N,,N,N
Pendle Borough Council,Operational Services,Transport Related Expense,Tprt : Annual Hire Charge,3601,GO PLANT FLEET SERVICES LIMITED,A0091600,07/09/2023,OPS0336316,496.4,N,,N,N
Pendle Borough Council,Operational Services,Transport Related Expense,Tprt : Annual Hire Charge,3601,GO PLANT FLEET SERVICES LIMITED,A0091600,07/09/2023,OPS0336316,496.4,N,,N,N
Pendle Borough Council,Operational Services,Premises Related Expense,Grounds : R & M : Day to Day : Routine,2101,A&G LANDSCAPES & GROUNDWORKS LIMITED,A0091675,07/09/2023,OPS0336294,73,N,,N,N
Pendle Borough Council,Operational Services,Premises Related Expense,Grounds : R & M : Day to Day : Routine,2101,A&G LANDSCAPES & GROUNDWORKS LIMITED,A0091675,07/09/2023,OPS0336294,73,N,,N,N
Pendle Borough Council,Operational Services,Premises Related Expense,Grounds : R & M : Day to Day : Routine,2101,A&G LANDSCAPES & GROUNDWORKS LIMITED,A0091675,07/09/2023,OPS0336294,49.43,N,,N,N
Pendle Borough Council,Operational Services,Premises Related Expense,Grounds : R & M : Day to Day : Routine,2101,A&G LANDSCAPES & GROUNDWORKS LIMITED,A0091675,21/09/2023,OPS0336621,59.75,N,,N,N
Pendle Borough Council,Operational Services,Premises Related Expense,Grounds : R & M : Day to Day : Routine,2101,A&G LANDSCAPES & GROUNDWORKS LIMITED,A0091675,21/09/2023,OPS0336621,125,N,,N,N
Pendle Borough Council,Operational Services,Premises Related Expense,Grounds : R & M : Day to Day : Routine,2101,A&G LANDSCAPES & GROUNDWORKS LIMITED,A0091675,07/09/2023,OPS0336294,169.57,N,,N,N
Pendle Borough Council,Operational Services,Premises Related Expense,Grounds : R & M : Day to Day : Routine,2101,A&G LANDSCAPES & GROUNDWORKS LIMITED,A0091675,07/09/2023,OPS0336294,73,N,,N,N
Pendle Borough Council,Operational Services,Premises Related Expense,Grounds : R & M : Day to Day : Routine,2101,A&G LANDSCAPES & GROUNDWORKS LIMITED,A0091675,07/09/2023,OPS0336294,73,N,,N,N
Pendle Borough Council,Operational Services,Premises Related Expense,Grounds : R & M : Day to Day : Routine,2101,A&G LANDSCAPES & GROUNDWORKS LIMITED,A0091675,07/09/2023,OPS0336294,73,N,,N,N
Pendle Borough Council,Economic Growth,Supplies and Services,Other Expenses,4705,A&G LANDSCAPES & GROUNDWORKS LIMITED,A0091675,21/09/2023,ECO0336550,1000,N,,N,N
Pendle Borough Council,Economic Growth,Supplies and Services,Other Expenses,4705,A&G LANDSCAPES & GROUNDWORKS LIMITED,A0091675,21/09/2023,ECO0336550,4822.6,N,,N,N
Pendle Borough Council,Operational Services,Supplies and Services,Other Expenses,4705,A&G LANDSCAPES & GROUNDWORKS LIMITED,A0091675,07/09/2023,OPS0336269,75.57,N,,N,N
Pendle Borough Council,Operational Services,Supplies and Services,Other Expenses,4705,A&G LANDSCAPES & GROUNDWORKS LIMITED,A0091675,07/09/2023,OPS0336269,306.43,N,,N,N
Pendle Borough Council,Operational Services,Capital Costs,Capital : Payments,CD14,A&G LANDSCAPES & GROUNDWORKS LIMITED,A0091675,21/09/2023,OPS0336622,120,N,,N,N
Pendle Borough Council,Operational Services,Capital Costs,Capital : Payments,CD14,A&G LANDSCAPES & GROUNDWORKS LIMITED,A0091675,21/09/2023,OPS0336622,250,N,,N,N
Pendle Borough Council,Economic Growth,Capital Costs,Capital : Payments,CD14,A&G LANDSCAPES & GROUNDWORKS LIMITED,A0091675,21/09/2023,ECO0336558,6301,N,,N,N
Pendle Borough Council,Economic Growth,Capital Costs,Capital : Payments,CD14,A&G LANDSCAPES & GROUNDWORKS LIMITED,A0091675,21/09/2023,ECO0336558,2500,N,,N,N
Pendle Borough Council,Economic Growth,Capital Costs,Capital : Payments,CD14,A&G LANDSCAPES & GROUNDWORKS LIMITED,A0091675,21/09/2023,ECO0336558,11500,N,,N,N
Pendle Borough Council,Operational Services,Capital Costs,Capital : Payments,CD14,A&G LANDSCAPES & GROUNDWORKS LIMITED,A0091675,21/09/2023,OPS0336630,1000,N,,N,N
Pendle Borough Council,Operational Services,Capital Costs,Capital : Payments,CD14,A&G LANDSCAPES & GROUNDWORKS LIMITED,A0091675,21/09/2023,OPS0336630,1349,N,,N,N
Pendle Borough Council,I.T Services,Capital Costs,Capital : Payments,CD14,DB DATA COMMS LIMITED,A0091755,21/09/2023,ITS0336639,386.5,N,,N,N
Pendle Borough Council,Housing & Environmental Health,Agency Staff,Emp : Agency Wages,1004,THE OYSTER PARTNERSHIP LIMITED,A0091781,07/09/2023,HEH0336234,620.06,N,,N,N
Pendle Borough Council,Housing & Environmental Health,Agency Staff,Emp : Agency Wages,1004,THE OYSTER PARTNERSHIP LIMITED,A0091781,14/09/2023,HEH0336455,1206.25,N,,N,N
Pendle Borough Council,Housing & Environmental Health,Agency Staff,Emp : Agency Wages,1004,THE OYSTER PARTNERSHIP LIMITED,A0091781,21/09/2023,HEH0336579,1492.61,N,,N,N
Pendle Borough Council,Housing & Environmental Health,Agency Staff,Emp : Agency Wages,1004,THE OYSTER PARTNERSHIP LIMITED,A0091781,28/09/2023,HEH0336652,1545.64,N,,N,N
Pendle Borough Council,"Planning, Building Control & Regulatory Services",Supplies and Services,Seminars etc All Costs,4601,INSTITUTE OF LICENSING (EVENTS) LIMITED,A0091882,07/09/2023,PBC0336311,165,N,,N,N
Pendle Borough Council,"Planning, Building Control & Regulatory Services",Supplies and Services,Seminars etc All Costs,4601,INSTITUTE OF LICENSING (EVENTS) LIMITED,A0091882,07/09/2023,PBC0336312,165,N,,N,N
Pendle Borough Council,Property Services,Premises Related Expense,Water & Sewerage,2501,BUSINESS STREAM,A0091916,07/09/2023,EST0336317,66.36,N,,N,N
Pendle Borough Council,Operational Services,Transport Related Expense,Tprt : Annual Hire Charge,3601,SMI GROUP UK,A0091999,21/09/2023,OPS0336618,117.95,N,,N,N
Pendle Borough Council,Operational Services,,Stock : Purchases,PJ01,SMI GROUP UK,A0091999,14/09/2023,OPS4006735,-0.34,N,,N,N
Pendle Borough Council,Operational Services,,Stock : Purchases,PJ01,SMI GROUP UK,A0091999,14/09/2023,OPS0336470,39.5,N,,N,N
Pendle Borough Council,Operational Services,,Stock : Purchases,PJ01,SMI GROUP UK,A0091999,14/09/2023,OPS0336470,312.5,N,,N,N
Pendle Borough Council,Operational Services,,Stock : Purchases,PJ01,SMI GROUP UK,A0091999,14/09/2023,OPS0336469,379.1,N,,N,N
Pendle Borough Council,Operational Services,,Stock : Purchases,PJ01,SMI GROUP UK,A0091999,28/09/2023,OPS0336723,387.66,N,,N,N
Pendle Borough Council,Finance,Supplies and Services,Robes & Regalia,4203,PRECIOUS METALS CRAFT AND DESIGN WORKSHOP,A0092529,07/09/2023,FIN0336372,460,N,,N,N
Pendle Borough Council,Finance,Agency Costs,Processing Fees,5304,LIVERPOOL UNIVERSITY HOSPITALS NHS FOUNDATIONTRUST,A0092555,28/09/2023,FIN0336784,1755,N,,N,N
Pendle Borough Council,Housing & Environmental Health,Capital Costs,Capital : Payments,CD14,BARROWFORD SAFE AND LOCK SERVICES LTD,A0092646,28/09/2023,HEH0336765,41.67,N,,N,N
Pendle Borough Council,Economic Growth,Supplies and Services,Consultants Fees,4401,IN SITU IN PLACE,A0092892,21/09/2023,POL0336247,31121.03,N,,N,N
Pendle Borough Council,"Planning, Building Control & Regulatory Services",,Other Income : Non-VATable,9303,FOULRIDGE SOCIAL WORKING MENS CLUB,A0092946,21/09/2023,PBC0336638,70,N,,N,N
Pendle Borough Council,Policy & Commissioning,Supplies and Services,Children`s holiday activities,4716,BODIES IN MOTION PENDLE LTD,A0093758,14/09/2023,POL0336419,600,N,,N,N
Pendle Borough Council,Operational Services,Supplies and Services,EFM Materials,4004,AMAZON PAYMENTS UK LIMITED,A0093876,14/09/2023,OPS0336471,30.34,N,,N,N
Pendle Borough Council,Operational Services,,Stock : Purchases,PJ01,AMAZON PAYMENTS UK LIMITED,A0093876,07/09/2023,OPS0336262,67.66,N,,N,N
Pendle Borough Council,Operational Services,,Stock : Purchases,PJ01,AMAZON PAYMENTS UK LIMITED,A0093876,07/09/2023,OPS0336263,156.56,N,,N,N
Pendle Borough Council,Housing & Environmental Health,Supplies and Services,Other Expenses,4705,HELLIWELLS FUNERAL SERVICE LTD,A0094030,07/09/2023,HEH0336067,82,N,,N,N
Pendle Borough Council,Operational Services,Supplies and Services,Expenditure : Materials,0002,TURFIX PITCH SOLUTIONS,A0094206,21/09/2023,OPS0336627,2923.75,N,,N,N
Pendle Borough Council,Finance,,Precept Parish & T Council,0303,BARROWFORD PARISH COUNCIL,A0094236,28/09/2023,FIN0336688,51550,N,,N,N
Pendle Borough Council,Revenues Services,Supplies and Services,DSS Collection Fee,4414,MARSTON (HOLDINGS) LIMITED,A0094273,14/09/2023,TRE0336516,19.89,N,,N,N
Pendle Borough Council,Economic Growth,Supplies and Services,LCC Levy (Admins Costs),4419,MARSTON (HOLDINGS) LIMITED,A0094273,21/09/2023,ECO0336555,-310,N,,N,N
Pendle Borough Council,Economic Growth,Supplies and Services,LCC Levy (Admins Costs),4419,MARSTON (HOLDINGS) LIMITED,A0094273,21/09/2023,ECO0336555,310,N,,N,N
Pendle Borough Council,Policy & Commissioning,Supplies and Services,Children`s holiday activities,4716,BODIES IN MOTION PENDLE LTD,A0095079,21/09/2023,POL0336416,624,N,,N,N
Pendle Borough Council,Policy & Commissioning,Supplies and Services,Children`s holiday activities,4716,BODIES IN MOTION PENDLE LTD,A0095079,14/09/2023,POL0336418,937.5,N,,N,N
Pendle Borough Council,Policy & Commissioning,Supplies and Services,Children`s holiday activities,4716,BODIES IN MOTION PENDLE LTD,A0095079,14/09/2023,POL0336417,1670,N,,N,N
Pendle Borough Council,Housing & Environmental Health,Supplies and Services,Other Expenses,4705,AQUILA TRAINING SERVICES LIMITED,A0095119,14/09/2023,HEH0336453,150,N,,N,N
Pendle Borough Council,Policy & Commissioning,Supplies and Services,Children`s holiday activities,4716,LOOP PUBLISHING LIMITED,A0095376,14/09/2023,POL0336246,200,N,,N,N
Pendle Borough Council,Operational Services,Premises Related Expense,Grounds : R & M : Day to Day : Routine,2101,M W ENVIRONMENTAL,A0095862,07/09/2023,OPS0336287,65,N,,N,N
Pendle Borough Council,Policy & Commissioning,Supplies and Services,Children`s holiday activities,4716,COLNE YOUTH ACTION GROUP,A0096017,07/09/2023,POL0336244,6809.6,N,,N,N
Pendle Borough Council,Operational Services,Agency Staff,Emp : Training : Courses,1013,ARMCO ASBESTOS CONSULTANTS LTD,A0096349,14/09/2023,OPS0336475,300,N,,N,N
Pendle Borough Council,Operational Services,Supplies and Services,Other Expenses,4705,ARMCO ASBESTOS CONSULTANTS LTD,A0096349,14/09/2023,OPS0336475,150,N,,N,N
Pendle Borough Council,Housing & Environmental Health,Transfer Payments,Accommodation ,6103,REGENT GUEST HOUSE,A0096417,14/09/2023,HEH0336511,350,N,,N,N
Pendle Borough Council,Housing & Environmental Health,Transfer Payments,Accommodation ,6103,REGENT GUEST HOUSE,A0096417,21/09/2023,HEH0336570,910,N,,N,N
Pendle Borough Council,Housing & Environmental Health,Transfer Payments,Accommodation ,6103,REGENT GUEST HOUSE,A0096417,21/09/2023,HEH0336567,1050,N,,N,N
Pendle Borough Council,Housing & Environmental Health,Transfer Payments,Accommodation ,6103,REGENT GUEST HOUSE,A0096417,21/09/2023,HEH0336568,1050,N,,N,N
Pendle Borough Council,Housing & Environmental Health,Transfer Payments,Accommodation ,6103,REGENT GUEST HOUSE,A0096417,21/09/2023,HEH0336571,1050,N,,N,N
Pendle Borough Council,Housing & Environmental Health,Transfer Payments,Accommodation ,6103,REGENT GUEST HOUSE,A0096417,14/09/2023,HEH0336508,1190,N,,N,N
Pendle Borough Council,Housing & Environmental Health,Transfer Payments,Accommodation ,6103,REGENT GUEST HOUSE,A0096417,21/09/2023,HEH0336569,1190,N,,N,N
Pendle Borough Council,Housing & Environmental Health,Transfer Payments,Accommodation ,6103,REGENT GUEST HOUSE,A0096417,14/09/2023,HEH0336509,2450,N,,N,N
Pendle Borough Council,Housing & Environmental Health,Transfer Payments,Accommodation ,6103,REGENT GUEST HOUSE,A0096417,14/09/2023,HEH0336510,2450,N,,N,N
Pendle Borough Council,Policy & Commissioning,Supplies and Services,Children`s holiday activities,4716,SPORTSCOOL LTD,A0096429,14/09/2023,POL0336223,27002,N,,N,N
Pendle Borough Council,Policy & Commissioning,Supplies and Services,Children`s holiday activities,4716,ABSOLUTE FUTBOL LTD,A0096761,14/09/2023,POL0336431,7200,N,,N,N
Pendle Borough Council,Finance,Premises Related Expense,Service Charge,2702,B1 YOUR SPACE LTD,A0096763,14/09/2023,FIN0336527,4750,N,,N,N
Pendle Borough Council,Operational Services,Transport Related Expense,Diesel Oil,3202,NWF FUELS,A0096773,21/09/2023,OPS0336637,2541.27,N,,N,N
Pendle Borough Council,Finance,Supplies and Services,Grant Funding,4737,REDACT - PERSONAL DATA,A0096806,08/09/2023,FIN0336394,500,N,,N,N
Pendle Borough Council,Finance,Supplies and Services,Grant Funding,4737,REDACT - PERSONAL DATA,A0096808,08/09/2023,FIN0336396,500,N,,N,N
Pendle Borough Council,Finance,Supplies and Services,Grant Funding,4737,REDACT - PERSONAL DATA,A0096819,08/09/2023,FIN0336397,500,N,,N,N
Pendle Borough Council,Finance,Supplies and Services,Grant Funding,4737,REDACT - PERSONAL DATA,A0096823,08/09/2023,FIN0336395,500,N,,N,N
Pendle Borough Council,Finance,Supplies and Services,Grant Funding,4737,REDACT - PERSONAL DATA,A0096866,08/09/2023,FIN0336398,500,N,,N,N
Pendle Borough Council,Finance,Supplies and Services,Grant Funding,4737,REDACT - PERSONAL DATA,A0096872,08/09/2023,FIN0336399,500,N,,N,N
Pendle Borough Council,Finance,Supplies and Services,Grant Funding,4737,REDACT - PERSONAL DATA,A0096893,08/09/2023,FIN0336400,500,N,,N,N
Pendle Borough Council,Finance,Supplies and Services,Subscriptions & Donations,4706,ARMED FORCES SUPPORT GROUP,A0096899,21/09/2023,FIN0336648,10000,N,,N,N
Pendle Borough Council,Finance,Supplies and Services,Grant Funding,4737,REDACT - PERSONAL DATA,A0096910,08/09/2023,FIN0336403,500,N,,N,N
Pendle Borough Council,Finance,Supplies and Services,Grant Funding,4737,REDACT - PERSONAL DATA,A0096912,08/09/2023,FIN0336401,500,N,,N,N
Pendle Borough Council,Finance,Supplies and Services,Grant Funding,4737,REDACT - PERSONAL DATA,A0096916,08/09/2023,FIN0336402,500,N,,N,N
Pendle Borough Council,Finance,Transport Related Expense,Tprt : Repairs : General,3105,LLOYDS CORPORATE CARDS,A0096977,25/09/2023,FIN0336956,41.01,N,,N,N
Pendle Borough Council,Finance,Transport Related Expense,Tprt : Repairs : General,3105,LLOYDS CORPORATE CARDS,A0096977,25/09/2023,FIN0336956,90.76,N,,N,N
Pendle Borough Council,Finance,Transport Related Expense,Tprt : Repairs : General,3105,LLOYDS CORPORATE CARDS,A0096977,25/09/2023,FIN0336956,67.34,N,,N,N
Pendle Borough Council,Finance,Transport Related Expense,Tprt : Repairs : General,3105,LLOYDS CORPORATE CARDS,A0096977,25/09/2023,FIN0336956,106.75,N,,N,N
Pendle Borough Council,Finance,Transport Related Expense,Tprt : Repairs : General,3105,LLOYDS CORPORATE CARDS,A0096977,25/09/2023,FIN0336956,157.25,N,,N,N
Pendle Borough Council,Finance,Transport Related Expense,Tprt : Repairs : General,3105,LLOYDS CORPORATE CARDS,A0096977,25/09/2023,FIN0336956,312.98,N,,N,N
Pendle Borough Council,Finance,Transport Related Expense,Tprt : Repairs : General,3105,LLOYDS CORPORATE CARDS,A0096977,25/09/2023,FIN0336956,270.43,N,,N,N
Pendle Borough Council,Finance,Transport Related Expense,Tprt : Repairs : General,3105,LLOYDS CORPORATE CARDS,A0096977,25/09/2023,FIN0336956,63.8,N,,N,N
Pendle Borough Council,Finance,Transport Related Expense,Tprt : Repairs : General,3105,LLOYDS CORPORATE CARDS,A0096977,25/09/2023,FIN0336956,298.62,N,,N,N
Pendle Borough Council,Finance,Transport Related Expense,Tprt : Repairs : General,3105,LLOYDS CORPORATE CARDS,A0096977,25/09/2023,FIN0336956,386.21,N,,N,N
Pendle Borough Council,Finance,Transport Related Expense,Tprt : Repairs : General,3105,LLOYDS CORPORATE CARDS,A0096977,25/09/2023,FIN0336956,10.25,N,,N,N
Pendle Borough Council,Finance,Transport Related Expense,Tprt : Repairs : General,3105,LLOYDS CORPORATE CARDS,A0096977,25/09/2023,FIN0336956,21,N,,N,N
Pendle Borough Council,Finance,Transport Related Expense,Tprt : Repairs : General,3105,LLOYDS CORPORATE CARDS,A0096977,25/09/2023,FIN0336956,90.75,N,,N,N
Pendle Borough Council,Finance,Transport Related Expense,Tprt : Repairs : General,3105,LLOYDS CORPORATE CARDS,A0096977,25/09/2023,FIN0336956,250.47,N,,N,N
Pendle Borough Council,Finance,Transport Related Expense,Tprt : Repairs : General,3105,LLOYDS CORPORATE CARDS,A0096977,25/09/2023,FIN0336956,593.62,N,,N,N
Pendle Borough Council,Finance,Transport Related Expense,Tprt : Repairs : General,3105,LLOYDS CORPORATE CARDS,A0096977,25/09/2023,FIN0336956,58.69,N,,N,N
Pendle Borough Council,Finance,Transport Related Expense,Tprt : Repairs : General,3105,LLOYDS CORPORATE CARDS,A0096977,25/09/2023,FIN0336956,620.69,N,,N,N
Pendle Borough Council,Finance,Transport Related Expense,Tprt : Repairs : General,3105,LLOYDS CORPORATE CARDS,A0096977,25/09/2023,FIN0336956,221.75,N,,N,N
Pendle Borough Council,Finance,Transport Related Expense,Tprt : Repairs : General,3105,LLOYDS CORPORATE CARDS,A0096977,25/09/2023,FIN0336956,156.82,N,,N,N
Pendle Borough Council,Finance,Transport Related Expense,Tprt : Repairs : General,3105,LLOYDS CORPORATE CARDS,A0096977,25/09/2023,FIN0336956,221.55,N,,N,N
Pendle Borough Council,Finance,Transport Related Expense,Tyres,3204,LLOYDS CORPORATE CARDS,A0096977,25/09/2023,FIN0336956,407.78,N,,N,N
Pendle Borough Council,Finance,Transport Related Expense,Tyres,3204,LLOYDS CORPORATE CARDS,A0096977,25/09/2023,FIN0336956,28.73,N,,N,N
Pendle Borough Council,Finance,Transport Related Expense,Tyres,3204,LLOYDS CORPORATE CARDS,A0096977,25/09/2023,FIN0336956,103.37,N,,N,N
Pendle Borough Council,Finance,Transport Related Expense,Tyres,3204,LLOYDS CORPORATE CARDS,A0096977,25/09/2023,FIN0336956,103.38,N,,N,N
Pendle Borough Council,Finance,Transport Related Expense,Tprt : Annual Hire Charge,3601,LLOYDS CORPORATE CARDS,A0096977,25/09/2023,FIN0336956,357,N,,N,N
Pendle Borough Council,Finance,Supplies and Services,Grant Funding,4737,REDACT - PERSONAL DATA,A0096978,08/09/2023,FIN0336404,350,N,,N,N
Pendle Borough Council,Finance,Supplies and Services,Grant Funding,4737,REDACT - PERSONAL DATA,A0096980,08/09/2023,FIN0336405,350,N,,N,N
Pendle Borough Council,Economic Growth,Supplies and Services,Consultants Fees,4401,RAISE PARTNERSHIP LIMITED,A0096986,21/09/2023,POL0336574,547.2,N,,N,N
Pendle Borough Council,Finance,Supplies and Services,Grant Funding,4737,REDACT - PERSONAL DATA,A0097003,08/09/2023,FIN0336406,350,N,,N,N
Pendle Borough Council,Operational Services,Transport Related Expense,Tprt : Repairs : General,3105,SIXIS Technology Ltd,A0097018,07/09/2023,OPS0336295,458.8,N,,N,N
Pendle Borough Council,Operational Services,Transport Related Expense,Tprt : Annual Hire Charge,3601,CAR HIRE DAY OF SWANSEA LTD,A0097023,07/09/2023,OPS0336268,386.57,N,,N,N
Pendle Borough Council,Policy & Commissioning,Supplies and Services,Children`s holiday activities,4716,JAM CODING PENDLE,A0097169,28/09/2023,POL0336742,5760,N,,N,N
Pendle Borough Council,Policy & Commissioning,Supplies and Services,Children`s holiday activities,4716,PLAY AND LEARN SCHEME CIC,A0097170,14/09/2023,POL0336451,12000,N,,N,N
Pendle Borough Council,Finance,Capital Costs,Capital: Design Fees,CD53,DCR SURVEYING AND ESTIMATING SERVICES LTD,A0097173,07/09/2023,FIN0336381,3021.28,N,,N,N
Pendle Borough Council,Finance,Supplies and Services,Grant Funding,4737,REDACT - PERSONAL DATA,A0097338,08/09/2023,FIN0336407,350,N,,N,N
Pendle Borough Council,Finance,Supplies and Services,Grant Funding,4737,REDACT - PERSONAL DATA,A0097339,08/09/2023,FIN0336408,350,N,,N,N
Pendle Borough Council,Economic Growth,Supplies and Services,Consultants Fees,4401,LEONARD DESIGN ARCHITECTS,A0097355,21/09/2023,POL0336644,4250,N,,N,N
Pendle Borough Council,Operational Services,Supplies and Services,EFM Materials,4004,ECO REMOVAL SYSTEMS LTD,A0097384,14/09/2023,OPS0336449,96.5,N,,N,N
Pendle Borough Council,Housing & Environmental Health,Supplies and Services,Other Expenses,4705,LADY  BELL LTD,A0097412,07/09/2023,HEH0336058,999,N,,N,N
Pendle Borough Council,Finance,Supplies and Services,Grant Funding,4737,REDACT - PERSONAL DATA,A0097415,08/09/2023,FIN0336409,500,N,,N,N
Pendle Borough Council,Finance,Capital Costs,Capital: Construction: Conversion/Refu,CD57,READSTONE CONSTRUCTION,A0097418,07/09/2023,FIN0336380,130250.86,N,,N,N
Pendle Borough Council,Finance,Supplies and Services,Grant Funding,4737,REDACT - PERSONAL DATA,A0097419,08/09/2023,FIN0336410,350,N,,N,N
Pendle Borough Council,Finance,Supplies and Services,Grant Funding,4737,REDACT - PERSONAL DATA,A0097419,08/09/2023,FIN0336411,350,N,,N,N
Pendle Borough Council,Finance,Supplies and Services,Grant Funding,4737,REDACT - PERSONAL DATA,A0097430,08/09/2023,FIN0336412,350,N,,N,N
Pendle Borough Council,Finance,Supplies and Services,Grant Funding,4737,REDACT - PERSONAL DATA,A0097430,08/09/2023,FIN0336413,350,N,,N,N
Pendle Borough Council,Finance,Capital Costs,Capital : Payments,CD14,PENBROOK DEVELOPMENTS LIMITED,A0097436,21/09/2023,FIN0336647,17772.9,N,,N,N
Pendle Borough Council,Housing & Environmental Health,Supplies and Services,Other Expenses,4705,SHP GROUP LIMITED,A0097438,07/09/2023,HEH0336237,693.32,N,,N,N
Pendle Borough Council,Housing & Environmental Health,Supplies and Services,Other Expenses,4705,SHP GROUP LIMITED,A0097438,21/09/2023,HEH0336572,780,N,,N,N
Pendle Borough Council,Housing & Environmental Health,Supplies and Services,Other Expenses,4705,SHP GROUP LIMITED,A0097438,28/09/2023,HEH0336686,693.32,N,,N,N
Pendle Borough Council,Policy & Commissioning,Supplies and Services,Children`s holiday activities,4716,TRAINING AND DEVELOPMENT SOLUTIONS LTD,A0097440,14/09/2023,POL0336196,9000,N,,N,N
Pendle Borough Council,Operational Services,Supplies and Services,Sub-Contractors,4007,PETER`S LANDSCAPING & GARDEN SERVICE,A0097442,14/09/2023,OPS0336462,450,N,,N,N
Pendle Borough Council,Operational Services,Supplies and Services,Sub-Contractors,4007,PETER`S LANDSCAPING & GARDEN SERVICE,A0097442,14/09/2023,OPS0336460,500,N,,N,N
Pendle Borough Council,Housing & Environmental Health,Supplies and Services,Other Expenses,4705,REDACT - PERSONAL DATA,A0097443,07/09/2023,HEH0336236,1495,N,,N,N
Pendle Borough Council,Operational Services,Transport Related Expense,Tprt : Repairs : General,3105,BRAYMALE LTD T/A LONGTON TEST CENTRE,A0097446,21/09/2023,OPS0336624,120,N,,N,N
Pendle Borough Council,Operational Services,Transport Related Expense,Tprt : Repairs : General,3105,BRAYMALE LTD T/A LONGTON TEST CENTRE,A0097446,21/09/2023,OPS0336624,126,N,,N,N
Pendle Borough Council,Operational Services,Indirect Employee Expenses,Training,1211,DQ-CPC TRAINING,A0097447,14/09/2023,OPS0336463,56,N,,N,N
Pendle Borough Council,Operational Services,Indirect Employee Expenses,Training,1211,DQ-CPC TRAINING,A0097447,14/09/2023,OPS0336463,114,N,,N,N
Pendle Borough Council,Housing & Environmental Health,Supplies and Services,Other Expenses,4705,REDACT - PERSONAL DATA,A0097449,14/09/2023,HEH0336422,825,N,,N,N
Pendle Borough Council,Housing & Environmental Health,Supplies and Services,Other Expenses,4705,REDACT - PERSONAL DATA,A0097450,14/09/2023,HEH0336512,1496,N,,N,N
Pendle Borough Council,Economic Growth,Supplies and Services,Other Expenses,4705,REDACT - PERSONAL DATA,A0097451,14/09/2023,ECO0336517,3000,N,,N,N
Pendle Borough Council,Finance,Capital Costs,Capital : Payments,CD14,REDACT - PERSONAL DATA,A0097453,14/09/2023,FIN0336593,9665.01,N,,N,N
Pendle Borough Council,Human Resources,Indirect Employee Expenses,Recruitment,1221,REDACT - PERSONAL DATA,A0097454,21/09/2023,PER0336562,407.5,N,,N,N
Pendle Borough Council,Policy & Commissioning,Supplies and Services,Children`s holiday activities,4716,EARNIES DESSERT BAR LTD,A0097458,21/09/2023,POL0336643,588,N,,N,N
Pendle Borough Council,Legal & Democratic Services,Supplies and Services,Other Expenses,4705,REDACT - PERSONAL DATA,A0097459,28/09/2023,LAD0336684,1400,N,,N,N
Pendle Borough Council,Finance,Capital Costs,Capital: Design Fees,CD53,SURE DESIGN LIMITED,A0097460,21/09/2023,FIN0336651,7150,N,,N,N
Pendle Borough Council,Human Resources,Supplies and Services,Other Expenses,4705,AVC WISE LTD,A0097461,28/09/2023,PER0336768,72.92,N,,N,N
Pendle Borough Council,Housing & Environmental Health,Supplies and Services,Other Expenses,4705,REDACT - PERSONAL DATA,A0097462,28/09/2023,HEH0336770,658.11,N,,N,N
Pendle Borough Council,Finance,Capital Costs,Capital: Design Fees,CD53,NORIKER CONSULTING ENGINEERS LTD,A0097464,28/09/2023,FIN0336785,660,N,,N,N
